Workbook

Sheet Introduction

Sheet Abbreviations
B1: Capacity Analysis for Planning of Roundabouts
B3: Abbreviation Definition

Sheet Input Worksheet
B1: Capacity Analysis for Planning of Roundabouts
B3: Input Worksheet
E8: Project Name: | M8: 0
E10: Project Number: | M10: Enter the Project Number here (Input worksheet)
E12: Location | M12: Enter the Project Location here (Input worksheet)
E14: Date | M14: Enter the date here (Input worksheet)
E18: Traffic Volume Demand
K20: Volume (Veh/h) | AQ20: Proportion of Trucks | AX20: Traffic Volume Growth Rate | BC20: nped (ped/h) | BG20: Lane Discipline: 2-Lane Approach
K22: U-Turn | S22: Left | AA22: Thru | AI22: Right
CN25: EB | CT25: WB | CZ25: SB | DF25: NB
CB26: 1 | CC26: Traffic Volume Growth Factor | CN26: =(1+EB_Growth_Rate)^(sDesignPeriod-1) -> 1 | CT26: =(1+WB_Growth_Rate)^(sDesignPeriod-1) -> 1 | CZ26: =(1+SB_Growth_Rate)^(sDesignPeriod-1) -> 1 | DF26: =(1+NB_Growth_Rate)^(sDesignPeriod-1) -> 1
E28: Eastbound | K28: 0 | S28: 50 | AA28: 30 | AI28: 150 | AQ28: 0 | AX28: 0 | BC28: 0 | BG28: Not Sure | BO28: EB | BP28: WB | BQ28: SB | BR28: NB | CB28: 2
E30: Westbound | K30: 0 | S30: 50 | AA30: 20 | AI30: 400 | AQ30: 0 | AX30: 0 | BC30: 0 | BG30: Not Sure | BO30: Not Sure | BP30: LTR,R | BQ30: L,LTR | BR30: LTR,R | CB30: 3
E32: Southbound | K32: 0 | S32: 350 | AA32: 300 | AI32: 200 | AQ32: 0 | AX32: 0 | BC32: 0 | BG32: LT,TR | CB32: 4
E34: Northbound | K34: 0 | S34: 530 | AA34: 510 | AI34: 10 | AQ34: 0 | AX34: 0 | BC34: 0 | BG34: LT,TR | BP34: =BG28 -> Not Sure | CB34: 5
E36: Peak Hour Factor | K36: 1 | S36: 1 | AA36: 1 | AI36: 1 | CB36: 6
E38: Truck to PCE Factor | K38: 2 | BO38: Lane Designation | CB38: 7
BO39: LT,TR
E40: Design Period (years) | K40: 20 | BO40: L,LTR
BO41: LTR,R
E42: Construction Year | K42: 2015 | BO42: Not Sure
E47: Demand Flow Rate (PCE) | AQ47: Adjustment Factors
K49: Volume (pc/h) | AQ49: fHV | AU49: fped
BP50: LOS
BP51: 0 | BQ51: A
BP52: 10.1 | BQ52: B
K53: U-Turn | S53: Left | AA53: Thru | AI53: Right | AU53: Single-lane entry | BA53: Multilane entry | BP53: 15.1 | BQ53: C
BP54: 25.1 | BQ54: D
BP55: 35.1 | BQ55: E
BP56: 50 | BQ56: F
E57: Eastbound | K57: =+ROUND((K28*EB_Growth_Factor)/(FHV_EB*UTAF),0) -> 0 | S57: =+ROUND((S28*EB_Growth_Factor)/(FHV_EB*LTAF),0) -> 50 | AA57: =+ROUND((AA28*EB_Growth_Factor)/(FHV_EB*TTAF),0) -> 30 | AI57: =+ROUND((AI28*EB_Growth_Factor)/(FHV_EB*RTAF),0) -> 150 | AQ57: =1/(1+EB_Truck_Percentage*(Truck_Adjustment_Factor-1)) -> 1 | AU57: =IF(EB_Conflict>881,1,(IF(EB_ped<101,(1-(0.000137*EB_ped)),((1119.5-(0.715*EB_Conflict)-(0.644*EB_ped)+(0.00073*EB_Conflict*EB_ped))/(1068.6-(0.654*EB_Conflict)))))) -> 1 | BA57: =IF(EB_ped<100,(MIN((1-(EB_ped/100)*(1-(1260.6-(0.329*EB_Conflict)-(0.381*100))/(1380-(0.5*EB_Conflict)))),1)),(MIN(((1260.6-(0.329*EB_Conflict)-(0.381*EB_ped))/(1380-(0.5*EB_Conflict))),1))) -> 1
E59: Westbound | K59: =+ROUND((K30*WB_Growth_Factor)/(FHV_WB*UTAF),0) -> 0 | S59: =+ROUND((S30*WB_Growth_Factor)/(FHV_WB*LTAF),0) -> 50 | AA59: =+ROUND((AA30*WB_Growth_Factor)/(FHV_WB*TTAF),0) -> 20 | AI59: =+ROUND((AI30*WB_Growth_Factor)/(FHV_WB*RTAF),0) -> 400 | AQ59: =1/(1+WB_Truck_Percentage*(Truck_Adjustment_Factor-1)) -> 1 | AU59: =IF(WB_Conflict>881,1,(IF(WB_ped<101,(1-(0.000137*WB_ped)),((1119.5-(0.715*WB_Conflict)-(0.644*WB_ped)+(0.00073*WB_Conflict*WB_ped))/(1068.6-(0.654*WB_Conflict)))))) -> 1 | BA59: =IF(WB_ped<100,(MIN((1-(WB_ped/100)*(1-(1260.6-(0.329*WB_Conflict)-(0.381*100))/(1380-(0.5*WB_Conflict)))),1)),(MIN(((1260.6-(0.329*WB_Conflict)-(0.381*WB_ped))/(1380-(0.5*WB_Conflict))),1))) -> 1
E61: Southbound | K61: =+ROUND((K32*SB_Growth_Factor)/(FHV_SB*UTAF),0) -> 0 | S61: =+ROUND((S32*SB_Growth_Factor)/(FHV_SB*LTAF),0) -> 350 | AA61: =+ROUND((AA32*SB_Growth_Factor)/(FHV_SB*TTAF),0) -> 300 | AI61: =+ROUND((AI32*SB_Growth_Factor)/(FHV_SB*RTAF),0) -> 200 | AQ61: =1/(1+SB_Truck_Percentage*(Truck_Adjustment_Factor-1)) -> 1 | AU61: =IF(SB_Conflict>881,1,(IF(SB_ped<101,(1-(0.000137*SB_ped)),((1119.5-(0.715*SB_Conflict)-(0.644*SB_ped)+(0.00073*SB_Conflict*SB_ped))/(1068.6-(0.654*SB_Conflict)))))) -> 1 | BA61: =IF(SB_ped<100,(MIN((1-(SB_ped/100)*(1-(1260.6-(0.329*SB_Conflict)-(0.381*100))/(1380-(0.5*SB_Conflict)))),1)),(MIN(((1260.6-(0.329*SB_Conflict)-(0.381*SB_ped))/(1380-(0.5*SB_Conflict))),1))) -> 1
E63: Northbound | K63: =+ROUND((K34*NB_Growth_Factor)/(FHV_NB*UTAF),0) -> 0 | S63: =+ROUND((S34*NB_Growth_Factor)/(FHV_NB*LTAF),0) -> 530 | AA63: =+ROUND((AA34*NB_Growth_Factor)/(FHV_NB*TTAF),0) -> 510 | AI63: =+ROUND((AI34*NB_Growth_Factor)/(FHV_NB*RTAF),0) -> 10 | AQ63: =1/(1+NB_Truck_Percentage*(Truck_Adjustment_Factor-1)) -> 1 | AU63: =IF(NB_Conflict>881,1,(IF(NB_ped<101,(1-(0.000137*NB_ped)),((1119.5-(0.715*NB_Conflict)-(0.644*NB_ped)+(0.00073*NB_Conflict*NB_ped))/(1068.6-(0.654*NB_Conflict)))))) -> 1 | BA63: =IF(NB_ped<100,(MIN((1-(NB_ped/100)*(1-(1260.6-(0.329*NB_Conflict)-(0.381*100))/(1380-(0.5*NB_Conflict)))),1)),(MIN(((1260.6-(0.329*NB_Conflict)-(0.381*NB_ped))/(1380-(0.5*NB_Conflict))),1))) -> 1
E66: Notes:
E67: 1 | F67: The Traffic Volume Demand input values are movement volumes for the year of construction completion
E68: 2 | F68: The proportion of truck traffic and growth rate values are to be entered as percentile eg. If growth rate or proportion of truck traffic is 2%, enter 2 and not 0.02
E69: 3 | F69: Growth rate values ranges from 0% to 4%. If no data available, use 0.5%
E70: 4 | F70: Lane Discipline refers to existing intersection approach (2 lanes) configuration as indicated by the existing pavement markings. This may be different from the ultimate
F71: roundabout entry lane configuration depending on the traffic volume redistribution (See "Design Sheet" on subsequent worksheets). If no information is available, as
F72: in the case of a new road development, select "Not Sure".
E73: 5 | F73: The design period is typically 20 years as per Section 2.2.5 of ALDOT Roundabout Manual. A user may however, select a design year per their design requirements
E74: 6 | F74: The Peak Hour Factor input cell default value is 0.95
E75: 7 | F75: Truck to PCE factor has default value of 2.0 per section 2.2.1 of the ALDOT Roundabout Manual.

Sheet 1x1 Rndabt
B1: 1 NS x 1 EW Roundabout | BL1: 1 NS x 1 EW Lane Roundabout
B3: Results Sheet | BL3: Design Sheet
C6: Project Name: | K6: =P_Name -> 0
C8: Project Number: | K8: =P_Number -> Enter the Project Number here (Input worksheet) | CW8: Equation | DE8: A x exp(-B x Q)
C10: Location | K10: =Location -> Enter the Project Location here (Input worksheet) | AK10: Overal Roundabout Delay, s/veh | BC10: =(N37*(CH26+SB_Appr)+BB37*(DC31+WB_Appr)+BB68*(CU53+NB_Appr)+N68*(CB45+EB_Appr))/(CH26+SB_Appr+DC31+WB_Appr+CU53+NB_Appr+CB45+EB_Appr) -> 51.62923077 | CA10: Right-turn Bypass Lane | CW10: Single-Lane | DC10: A | DE10: 1380 | DJ10: B | DL10: 0.00102
C12: Date | K12: =Date -> Enter the date here (Input worksheet) | AK12: Overal Roundabout LOS | BC12: =VLOOKUP(BC10,LOS,2,TRUE) -> F | CW12: Bypass Type1a | DC12: A | DE12: 1380 | DJ12: B | DL12: 0.00102
CA14: Yes | CH14: pc/h | CK14: pc/h | CN14: pc/h | CQ14: pc/h | CW14: Bypass Type1b | DC14: A | DE14: 1420 | DJ14: B | DL14: 0.00085 | ER14: Rigt-turn Slip Type | FA14: EB | FB14: WB | FC14: SB | FD14: NB
CH15: =IF(SB_slipON="No",SBR_Master,0) -> 0 | CK15: =SBT_Master -> 300 | CN15: =SBL_Master -> 350 | CQ15: =SBU_Master -> 0 | DY15: Slip Approah vol | ER15: Type1a (yielding) | ES15: 0 | FA15: =VLOOKUP(BN51,RT_slip_type,2,FALSE) -> 0 | FB15: =VLOOKUP(DL27,RT_slip_type,2,FALSE) -> 2 | FC15: =VLOOKUP(CA16,RT_slip_type,2,FALSE) -> 2 | FD15: =VLOOKUP(CY64,RT_slip_type,2,FALSE) -> 1
CA16: Type2 (nonyielding) | DY16: =IF(WB_slipON="No",0,DH25) -> 400 | ER16: Type1b (yielding) | ES16: 1
DY17: =IF(EB_SlipON="No",0,BW49) -> 150 | ER17: Type2 (nonyielding) | ES17: 2
G18: Predicted approach MOE | AU18: Predicted approach MOE | CA18: pc/h | CL18: Predicted approach capacity | DY18: =IF(SB_slipON="No",0,CA21) -> 200
CA19: =IF(SB_slipON="Yes",SBR_Master,"n/a") -> 200 | DY19: =IF(NB_slipON="No",0,CY58) -> 10
CA20: veh/h
G21: Lane 1 | J21: =CH31 -> 0.868635574 | N21: V/C | AU21: Lane 1 | AX21: =CW31 -> 0.154185022 | BB21: V/C | CA21: =IF(SB_slipON="No","n/a",ROUND(FHV_SB*SB_fped_SL*CA19,1)) -> 200 | CL21: =$DE$10*EXP(-$DL$10*CL25) -> 748.3260496 | CP21: pc/h
CA22: capacity | CL22: =ROUND(FHV_SB*SB_fped_SL*CL21,1) -> 748.3 | CP22: veh/h
J23: =ROUND(3600/CL22+900*0.25*(CH31-1+SQRT((CH31-1)^2+((3600/CL22)*CH31)/(450*0.25)))+(5*(MIN(CH31,1))),1) -> 32.1 | N23: d, s/veh | AX23: =ROUND(3600/DA39+900*0.25*(CW31-1+SQRT((CW31-1)^2+((3600/DA39)*CW31)/(450*0.25)))+(5*(MIN(CW31,1))),1) -> 10.1 | BB23: d, s/veh | CA23: pc/h | CH23: pc/h | CL23: conflicting with
CA24: =IF(SB_slipON="No","n/a",IF(SB_slipType=0,$DE$12*EXP(-$DL$12*EBLeg_ExitFlow),IF(SB_slipType=1,$DE$14*EXP(-$DL$14*EBLeg_ExitFlow),"large"))) -> large | CH24: =SUM(CH15:CS15) -> 650 | ER24: Right-turn Slip
J25: =VLOOKUP(J23,LOS,2,TRUE) -> D | N25: LOS | AX25: =VLOOKUP(AX23,LOS,2,TRUE) -> B | BB25: LOS | CA25: veh/h | CH25: veh/h | CL25: =DN34+DN37+DN40+CO64+CL64+BQ36 -> 600 | CP25: pc/h | CW25: =IF(WB_slipON="No","n/a",IF(AND(WB_slipON="Yes",WB_slipType=2),0,DH25/DC25)) -> 0 | CX25: V/C RATIO | CY25: =IF(WB_slipON="No","n/a",$CR$64+$CQ$15+$BQ$39) -> 560 | CZ25: pc/h | DA25: conflicting with | DC25: =IF(WB_slipON="No","n/a",IF(WB_slipType=2,"large",ROUND(FHV_WB*WB_fped_SL*DE25,1))) -> large | DD25: veh/h | DE25: =IF(WB_slipON="No","n/a",IF(WB_slipType=0,$DE$12*EXP(-$DL$12*SBLeg_ExitFlow),IF(WB_slipType=1,$DE$14*EXP(-$DL$14*SBLeg_ExitFlow),"large"))) -> large | DF25: pc/h | DG25: capacity | DH25: =IF(WB_slipON="No","n/a",ROUND(FHV_WB*WB_fped_SL*DJ25,1)) -> 400 | DI25: veh/h | DJ25: =IF(WB_slipON="Yes",WBR_Master,"n/a") -> 400 | DK25: pc/h | DL25: Yes | DR25: Right-turn Bypass Lane | EY25: EB | FA25: WB | FD25: SB | FF25: NB
CA26: =IF(SB_slipON="no","n/a",IF(SB_slipType=2,"large",ROUND(FHV_SB*SB_fped_SL*CA24,1))) -> large | CH26: =ROUND(FHV_SB*CH24,1) -> 650 | ER26: No | ES26: 0 | EY26: =BN49 -> Yes | FA26: =DL25 -> Yes | FD26: =CA14 -> Yes | FF26: =CY62 -> Yes
J27: =ROUNDUP(900*0.25*(CH31-1+SQRT((CH31-1)^2+((3600/CL22)*CH31)/(150*0.25)))*(CL22/3600),0) -> 11 | N27: Q95, veh | AX27: =ROUNDUP(900*0.25*(CW31-1+SQRT((CW31-1)^2+((3600/DA39)*CW31)/(150*0.25)))*(DA39/3600),0) -> 1 | BB27: Q95, veh | CA27: conflicting with | CH27: V/C RATIO | CL27: Conflicting flow | DL27: Type2 (nonyielding) | ER27: Yes | ES27: 1
CL28: 1 | CM28: Lane
G29: Right-turn Bypass | J29: =IF(SB_slipON="NO","n/a",IF(AND(SB_slipON="Yes",SB_slipType=2),0,CA32)) -> 0 | N29: V/C | AU29: Right-turn Bypass | AX29: =IF(WB_slipON="No","n/a",IF(AND(WB_slipON="Yes",WB_slipType=2),0,CW25)) -> 0 | BB29: V/C | CA29: pc/h | EK29: capacity | EP29: delay
CA30: =IF(SB_slipON="No","n/a",$DN$34+$CO$64+$BQ$36) -> 550 | EH30: =DH25 -> 400 | EK30: 167619.1076 | EP30: =ROUND(3600/EK30+900*0.25*((DH25/EK30)-1+SQRT(((DH25/EK30)-1)^2+((3600/EK30)*(DH25/EK30))/(450*0.25)))+(5*(MIN((DH25/EK30),1))),1) -> 0
J31: =IF(SB_slipON="NO","n/a",IF(AND(SB_slipON="Yes",SB_slipType=2),0,ROUND(3600/CA26+900*0.25*(CA32-1+SQRT((CA32-1)^2+((3600/CA26)*CA32)/(450*0.25)))+(5*(MIN(CA32,1))),1))) -> 0 | N31: d, s/veh | AX31: =IF(WB_slipON="No","n/a",IF(AND(WB_slipON="Yes",WB_slipType=2),0,ROUND(3600/DC25+900*0.25*(CW25-1+SQRT((CW25-1)^2+((3600/DC25)*CW25)/(450*0.25)))+(5*(MIN(CW25,1))),1))) -> 0 | BB31: d, s/veh | CA31: V/C RATIO | CH31: =CH26/CL22 -> 0.868635574 | CW31: =DC31/DA39 -> 0.154185022 | CY31: V/C RATIO | DC31: =ROUND(FHV_WB*DE31,1) -> 70 | DD31: veh/h | DE31: =SUM(DN31:DN42) -> 70 | DF31: pc/h | DN31: =IF(WB_slipON="No",WBR_Master,0) -> 0 | DO31: pc/h
CA32: =IF(SB_slipON="No","n/a",IF(AND(SB_slipON="Yes",SB_slipType=2),0,CA21/CA26)) -> 0
J33: =IF(SB_slipON="Yes",VLOOKUP(J31,LOS,2,TRUE),"n/a") -> A | N33: LOS | AX33: =IF(WB_slipON="Yes",VLOOKUP(AX31,LOS,2,TRUE),"n/a") -> A | BB33: LOS
DN34: =WBT_Master -> 20 | DO34: pc/h
J35: =IF(SB_slipON="NO","n/a",IF(AND(SB_slipON="yes",SB_slipType=2),0,ROUNDUP(900*0.25*(CA32-1+SQRT((CA32-1)^2+((3600/CA26)*CA32)/(150*0.25)))*(CA26/3600),0))) -> 0 | N35: Q95, veh | AX35: =IF(WB_slipON="No","n/a",IF(AND(WB_slipON="yes",WB_slipType=2),0,ROUNDUP(900*0.25*(CW25-1+SQRT((CW25-1)^2+((3600/DC25)*CW25)/(150*0.25)))*(DC25/3600),0))) -> 0 | BB35: Q95, veh | BW35: Predicted approach capacity | CE35: Conflicting flow | CF35: 1 | CZ35: Conflicting flow | DA35: Predicted approach capacity
BP36: pc/h | BQ36: =EBU_Master -> 0
G37: Approach delay, s/veh | N37: =IF(SB_slipON="Yes",(J23*CH26+J31*CA21)/(CH26+CA21),J23) -> 24.54705882 | AU37: Approach delay, s/veh | BB37: =IF(WB_slipON="Yes",(AX23*DC31+AX31*DH25)/(DC31+DH25),AX23) -> 1.504255319 | CF37: Lane | DN37: =WBL_Master -> 50 | DO37: pc/h
BW38: =$DE$10*EXP(-$DL$10*EB_Conflict) -> 675.760537 | CA38: pc/h | DA38: =$DE$10*EXP(-$DL$10*DA42) -> 453.9734781 | DE38: pc/h
BP39: pc/h | BQ39: =EBL_Master -> 50 | BW39: =ROUND(FHV_EB*EB_fped_SL*BW38,1) -> 675.8 | CA39: veh/h | CX39: Lane | DA39: =ROUND(FHV_WB*WB_fped_SL*DA38,1) -> 454 | DE39: veh/h | EC39: 10000
BW40: conflicting with | DA40: conflicting with | DN40: =WBU_Master -> 0 | DO40: pc/h | EP40: 10
EP41: 649
BP42: pc/h | BQ42: =EBT_Master -> 30 | BW42: =CK15+CN15+CQ15+DN37+DN40+CL64 -> 700 | CA42: pc/h | CX42: 1 | DA42: =CL64+CO64+CR64+CQ15+BQ39+BQ36 -> 1090 | DE42: pc/h
EK43: =(900*0.25*EP41+5*EP41+3600)/(EP40-900*0.25*(SQRT((EP41/EC39-1)^2+2*3600*EP41/(900*0.25*EC39*EC39))-1)) -> 6219.912561
BP45: pc/h | BQ45: =IF(EB_SlipON="No",EBR_Master,0) -> 0 | BY45: pc/h | BZ45: =SUM(BQ36:BQ47) -> 80 | CA45: veh/h | CB45: =ROUND(FHV_EB*BZ45,1) -> 80 | CC45: V/C RATIO | CG45: =CB45/BW39 -> 0.1183782184
CU47: =CU53/CL57 -> 1.168539326 | CY47: =IF(NB_slipON="No","n/a",IF(AND(NB_slipON="Yes",NB_slipType=2),0,CY58/CY53)) -> 0.009727626459
CY48: V/C RATIO
G49: Predicted approach MOE | AU49: Predicted approach MOE | BL49: Right-turn Bypass Lane | BN49: Yes | BT49: pc/h | BU49: =IF(EB_SlipON="Yes",EBR_Master,"n/a") -> 150 | BV49: veh/h | BW49: =IF(EB_SlipON="No","n/a",ROUND(BU49*FHV_EB*EB_fped_SL,1)) -> 150 | BX49: capacity | BY49: pc/h | BZ49: =IF(EB_SlipON="No","n/a",IF(EB_slipType=0,$DE$12*EXP(-$DL$12*NBLeg_ExitFlow),IF(EB_slipType=1,$DE$14*EXP(-$DL$14*NBLeg_ExitFlow),"large"))) -> 965.6860469 | CA49: veh/h | CB49: =IF(EB_SlipON="No","n/a",IF(EB_slipType=2,"large",ROUND(FHV_EB*EB_fped_SL*BZ49,1))) -> 965.7 | CC49: conflicting with | CE49: pc/h | CF49: =IF(EB_SlipON="No","n/a",$CK$15+$DN$37+$CL$64) -> 350 | CG49: V/C Ratio | CH49: =IF(EB_SlipON="No","n/a",IF(AND(EB_SlipON="Yes",EB_slipType=2),0,BW49/CB49)) -> 0.1553277415 | CU49: V/C RATIO | CY49: =IF(NB_slipON="No","n/a",$BQ$42+$CN$15+$DN$40) -> 380
CL50: 1 | CM50: Lane | CY50: pc/h
BN51: Type1a (yielding) | CY51: conflicting with
G52: Lane 1 | J52: =CG45 -> 0.1183782184 | N52: V/C | AU52: Lane 1 | AX52: =CU47 -> 1.168539326 | BB52: V/C | CL52: Conflicting flow
CL53: Predicted approach capacity | CU53: =ROUND(FHV_NB*CU55,1) -> 1040 | CY53: =IF(NB_slipON="No","n/a",IF(NB_slipType=2,"large",ROUND(FHV_NB*NB_fped_SL*CY55,1))) -> 1028
J54: =ROUND(3600/BW39+900*0.25*(CG45-1+SQRT((CG45-1)^2+((3600/BW39)*CG45)/(450*0.25)))+(5*(MIN(BW39,1))),1) -> 11 | N54: d, s/veh | AX54: =ROUND(3600/CL57+900*0.25*(CU47-1+SQRT((CU47-1)^2+((3600/CL57)*CU47)/(450*0.25)))+(5*(MIN(CU47,1))),1) -> 106.7 | BB54: d, s/veh | CU54: veh/h | CY54: veh/h
CU55: =SUM(CL64:CW64) -> 1040 | CY55: =IF(NB_slipON="No","n/a",IF(NB_slipType=0,$DE$12*EXP(-$DL$12*WBLeg_ExitFlow),IF(NB_slipType=1,$DE$14*EXP(-$DL$14*WBLeg_ExitFlow),"large"))) -> 1028.042873
J56: =IF(AND(J54>=0,J54<=10),"A",IF(AND(J54>10,J54<=15),"B",IF(AND(J54>15,J54<=25),"C",IF(AND(J54>25,J54<=35),"D",IF(AND(J54>35,J54<=50),"E",IF(J54>50,"F","F")))))) -> B | N56: LOS | AX56: =VLOOKUP(AX54,LOS,2,TRUE) -> F | BB56: LOS | CL56: =$DE$10*EXP(-$DL$10*CL60) -> 890.0154109 | CP56: pc/h | CU56: pc/h | CY56: pc/h
CL57: =ROUND(FHV_NB*NB_fped_SL*CL56,1) -> 890 | CP57: veh/h | CY57: capacity
J58: =ROUNDUP(900*0.25*(CG45-1+SQRT((CG45-1)^2+((3600/BW39)*CG45)/(150*0.25)))*(BW39/3600),0) -> 1 | N58: Q95, veh | AX58: =ROUNDUP(900*0.25*(CU47-1+SQRT((CU47-1)^2+((3600/CL57)*CU47)/(150*0.25)))*(CL57/3600),0) -> 32 | BB58: Q95, veh | CL58: conflicting with | CY58: =IF(NB_slipON="No","n/a",ROUND(FHV_NB*NB_fped_SL*CY60,1)) -> 10
CY59: veh/h
G60: Right-turn Bypass | J60: =IF(EB_SlipON="No","n/a",IF(AND(EB_SlipON="Yes",EB_slipType=2),0,CH49)) -> 0.1553277415 | N60: V/C | AU60: Right-turn Bypass | AX60: =IF(NB_slipON="No","n/a",IF(AND(NB_slipON="Yes",NB_slipType=2),0,CY47)) -> 0.009727626459 | BB60: V/C | CL60: =BQ36+BQ39+BQ42+CN15+CQ15+DN40 -> 430 | CP60: pc/h | CY60: =IF(NB_slipON="Yes",NBR_Master,"n/a") -> 10
CY61: pc/h
J62: =IF(EB_SlipON="No","n/a",IF(AND(EB_SlipON="Yes",EB_slipType=2),0,ROUND(3600/CB49+900*0.25*(CH49-1+SQRT((CH49-1)^2+((3600/CB49)*CH49)/(450*0.25)))+(5*(MIN(CH49,1))),1))) -> 5.2 | N62: d, s/veh | AX62: =IF(NB_slipON="No","n/a",IF(AND(NB_slipON="Yes",NB_slipType=2),0,ROUND(3600/CY53+900*0.25*(CY47-1+SQRT((CY47-1)^2+((3600/CY53)*CY47)/(450*0.25)))+(5*(MIN(CY47,1))),1))) -> 3.6 | BB62: d, s/veh | CY62: Yes
J64: =IF(EB_SlipON="Yes",VLOOKUP(J62,LOS,2,TRUE),"n/a") -> A | N64: LOS | AX64: =IF(NB_slipON="Yes",VLOOKUP(AX62,LOS,2,TRUE),"n/a") -> A | BB64: LOS | CL64: =NBU_Master -> 0 | CO64: =NBL_Master -> 530 | CR64: =NBT_Master -> 510 | CU64: =IF(NB_slipON="No",NBR_Master,0) -> 0 | CY64: Type1b (yielding)
CL65: pc/h | CO65: pc/h | CR65: pc/h | CU65: pc/h
J66: =IF(EB_SlipON="No","n/a",IF(AND(EB_SlipON="yes",EB_slipType=2),0,ROUNDUP(900*0.25*(CH49-1+SQRT((CH49-1)^2+((3600/CB49)*CH49)/(150*0.25)))*(CB49/3600),0))) -> 1 | N66: Q95, veh | AX66: =IF(NB_slipON="No","n/a",IF(AND(NB_slipON="yes",NB_slipType=2),0,ROUNDUP(900*0.25*(CY47-1+SQRT((CY47-1)^2+((3600/CY53)*CY47)/(150*0.25)))*(CY53/3600),0))) -> 1 | BB66: Q95, veh | CY66: Right-turn Bypass Lane
G68: Approach delay, s/veh | N68: =IF(EB_SlipON="Yes",(J54*CB45+J62*BW49)/(CB45+BW49),J54) -> 7.217391304 | AU68: Approach delay, s/veh | BB68: =IF(NB_slipON="Yes",(AX54*CU53+AX62*CY58)/(CU53+CY58),AX54) -> 105.7180952

Sheet 1NS x 2 EW Rndabt
B1: 1 NS x 2 EW Lane Roundabout | BL1: 1 NS x 2 EW Lane Roundabout
B3: Results Sheet | BL3: Design Sheet
EC5: Rigt-turn Slip Type | EL5: EB | EM5: WB | EN5: SB | EO5: NB
C6: Project Name: | K6: =P_Name -> 0 | EC6: Type1a (yielding) | ED6: 0 | EL6: =VLOOKUP(CA75,RT_slip_type,2,FALSE) -> 1 | EM6: =VLOOKUP(CY22,RT_slip_type,2,FALSE) -> 0 | EN6: =VLOOKUP(BO34,RT_slip_type,2,FALSE) -> 0 | EO6: =VLOOKUP(DL65,RT_slip_type,2,FALSE) -> 1
EC7: Type1b (yielding) | ED7: 1
C8: Project Number: | K8: =P_Number -> Enter the Project Number here (Input worksheet) | EC8: Type2 (nonyielding) | ED8: 2
CE9: Equation | CL9: A x exp(-B x Q)
C10: Location | K10: =Location -> Enter the Project Location here (Input worksheet) | AK10: Overal Roundabout Delay, s/veh | BC10: =(K36*(BV35+SB_1x2_ApprSlipVol)+BC43*(CY29+CY26+WB_1x2_ApprSlipVol)+BC75*(DH63+NB_1x2_ApprSlipVol)+K77*(CF66+CF69+EB_1x2_ApprSlipVol))/(SB_1x2_ApprSlipVol+BV35+CY29+CY26+WB_1x2_ApprSlipVol+DH63+EB_1x2_ApprSlipVol+CF66+CF69+NB_1x2_ApprSlipVol) -> 35.47769231
CE11: 1 Entry, 2 Circ. | CJ11: A | CL11: 1420 | CQ11: B | CS11: 0.00085
C12: Date | K12: =Date -> Enter the date here (Input worksheet) | AK12: Overal Roundabout LOS | BC12: =VLOOKUP(BC10,LOS,2,TRUE) -> E
CE13: Bypass Type1a | CJ13: A | CL13: 1380 | CQ13: B | CS13: 0.00102
CE15: Bypass Type1b | CJ15: A | CL15: 1420 | CQ15: B | CS15: 0.00085 | EC15: Right-turn Slip
AU16: Predicted approach capacity | EJ16: EB | EL16: WB | EO16: SB | EQ16: NB
C17: Predicted approach capacity | CE17: 2 Entry, 1 Circ. | CJ17: A | CL17: 1420 | CQ17: B | CS17: 0.00091 | EC17: No | ED17: 0 | EJ17: =CA73 -> Yes | EL17: =CY20 -> Yes | EO17: =BO32 -> Yes | EQ17: =DL63 -> No
EC18: Yes | ED18: 1
AU19: Lane 1 | AY19: =CT29 -> 0.09494872769 | BC19: V/C | DN19: =VLOOKUP(WB_LaneDesig,WB_1x2_lanedesignate,2,FALSE) -> L,TR | DP19: =DL34/(DL34+DL37+DL40+DL43) -> 0
C20: Lane 1 | G20: =BV39 -> 0.762284508 | K20: V/C | CJ20: =IF(WB_1x2_slipON="No","n/a",IF(AND(WB_1x2_slipON="Yes",WB_1x2_slipType=2),0,CU20/CP20)) -> 0.5131494548 | CK20: V/C RATIO | CL20: =IF(WB_1x2_slipON="No","n/a",$CB$24+$BS$58+$DJ$76) -> 560 | CM20: pc/h | CN20: conflicting with | CP20: =IF(WB_1x2_slipON="No","n/a",IF(WB_1x2_slipType=2,"large",ROUND(FHV_WB*WB_fped_SL*CR20,1))) -> 779.5 | CQ20: veh/h | CR20: =IF(WB_1x2_slipON="No","n/a",IF(WB_1x2_slipType=0,CL13*EXP(-CS13*SB_1x2_Leg_ExitFlow),IF(WB_1x2_slipType=1,CL15*EXP(-CS15*SB_1x2_Leg_ExitFlow),"large"))) -> 779.489157 | CS20: pc/h | CT20: capacity | CU20: =IF(WB_1x2_slipON="No","n/a",ROUND(FHV_WB*WB_fped_SL*CW20,1)) -> 400 | CV20: veh/h | CW20: =IF(WB_1x2_slipON="Yes",WBR_Master,"n/a") -> 400 | CX20: pc/h | CY20: Yes | DE20: Right-turn Bypass Lane | DJ20: =DL34 -> 0
AY21: =ROUND(3600/CY35+900*0.25*(CT29-1+SQRT((CT29-1)^2+((3600/CY35)*CT29)/(450*0.25)))+(5*(MIN(CT29,1))),1) -> 8 | BC21: d, s/veh
G22: =ROUND(3600/CF34+900*0.25*(BV39-1+SQRT((BV39-1)^2+((3600/CF34)*BV39)/(450*0.25)))+(5*(MIN(BV39,1))),1) -> 20.2 | K22: d, s/veh | CY22: Type1a (yielding) | EC22: Slip Approach vol
AY23: =IF(AY19<=1,VLOOKUP(AY21,LOS,2,TRUE),"F") -> A | BC23: LOS | BS23: pc/h | BV23: pc/h | BY23: pc/h | CB23: pc/h | DH23: =DA26-DJ20 -> 20 | DN23: Roundabout Entry Lane Discipline | DP23: Right turn to Total Flow Ratio | EC23: =IF(EB_1x2_slipON="No",0,CJ73) -> 150
G24: =IF(G20<=1,VLOOKUP(G22,LOS,2,TRUE),"F") -> C | K24: LOS | BS24: =IF(SB_1x2_slipON="No",SBR_Master,0) -> 0 | BV24: =SBT_Master -> 300 | BY24: =SBL_Master -> 350 | CB24: =SBU_Master -> 0 | EC24: =IF(WB_1x2_slipON="No",0,CU20) -> 400
AY25: =ROUNDUP(900*0.25*(CT29-1+SQRT((CT29-1)^2+((3600/CY35)*CT29)/(150*0.25)))*(CY35/3600),0) -> 1 | BC25: Q95, veh | EC25: =IF(NB_1x2_slipON="No",0,DL59) -> 0
G26: =ROUNDUP(900*0.25*(BV39-1+SQRT((BV39-1)^2+((3600/CF34)*BV39)/(150*0.25)))*(CF34/3600),0) -> 8 | K26: Q95, veh | CR26: 2 | CT26: =CY26/DA35 -> 0.03797949107 | CV26: V/C RATIO | CY26: =ROUND(FHV_WB*DA26,1) -> 20 | CZ26: veh/h | DA26: =SUM(DL34:DL45)-DA29 -> 20 | DB26: pc/h | EC26: =IF(SB_1x2_slipON="No",0,BO39) -> 200
AU27: Lane 2 | AY27: =CT26 -> 0.03797949107 | BC27: V/C | DH27: =DA29-DJ30 -> 0
C28: Right-turn Bypass | G28: =IF(SB_1x2_slipON="NO","n/a",IF(AND(SB_1x2_slipON="Yes",SB_slipType=2),0,BO50)) -> 0 | K28: V/C | BO28: Right-turn Bypass Lane | BZ28: Conflicting flow
AY29: =ROUND(3600/DA35+900*0.25*(CT26-1+SQRT((CT26-1)^2+((3600/DA35)*CT26)/(450*0.25)))+(5*(MIN(CT26,1))),1) -> 7.3 | BC29: d, s/veh | BZ29: =DH23 -> 20 | CR29: 1 | CT29: =CY29/CY35 -> 0.09494872769 | CV29: V/C RATIO | CY29: =ROUND(FHV_WB*DA29,1) -> 50 | CZ29: veh/h | DA29: =VLOOKUP(DN19,WB_1x2_LeftLane_VolProp,3,FALSE) -> 50 | DB29: pc/h | EC29: EB_LeftlaneVolProp
G30: =IF(SB_1x2_slipON="NO","n/a",IF(AND(SB_1x2_slipON="Yes",SB_1x2_slipType=2),0,ROUND(3600/BO44+900*0.25*(BO50-1+SQRT((BO50-1)^2+((3600/BO44)*BO50)/(450*0.25)))+(5*(MIN(BO50,1))),1))) -> 7.4 | K30: d, s/veh | DJ30: =DL40+DL43 -> 50 | EC30: L,TR | EE30: =$BS$55+$BS$58 -> 50
AY31: =IF(AY27<=1,VLOOKUP(AY29,LOS,2,TRUE),"F") -> A | BC31: LOS | BZ31: =DH27+DJ30+DD76+DG76+BS55 -> 580 | EC31: LT,R | EE31: =$BS$55+$BS$58+$BS$61 -> 80
G32: =IF(SB_1x2_slipON="Yes",VLOOKUP(G30,LOS,2,TRUE),"n/a") -> A | K32: LOS | BO32: Yes | BV32: pc/h | EC32: LT,TR | EE32: =0.47*SUM($BS$55:$BS$66) -> 37.6
AY33: =ROUNDUP(900*0.25*(CT26-1+SQRT((CT26-1)^2+((3600/DA35)*CT26)/(150*0.25)))*(DA35/3600),0) -> 1 | BC33: Q95, veh | BV33: =BS24+BV24+BY24+CB24 -> 650 | BZ33: Lane Cap. | CD33: pc/h | CF33: veh/h | CY33: =$CL$17*EXP(-$CS$17*DD37) -> 526.6373391 | DA33: =$CL$17*EXP(-$CS$17*DD37) -> 526.6373391 | DC33: pc/h | DF33: Conflicting flow | EC33: L,LTR | EE33: =0.53*SUM($BS$55:$BS$66) -> 42.4
G34: =IF(SB_1x2_slipON="NO","n/a",IF(AND(SB_1x2_slipON="yes",SB_1x2_slipType=2),0,ROUNDUP(900*0.25*(BO50-1+SQRT((BO50-1)^2+((3600/BO44)*BO50)/(150*0.25)))*(BO44/3600),0))) -> 2 | K34: Q95, veh | BO34: Type1a (yielding) | BV34: veh/h | BZ34: 1 | CD34: =$CL$11*EXP(-$CS$11*(BZ31+BZ29)) -> 852.7037219 | CF34: =ROUND(FHV_SB*SB_fped_SL*CD34,1) -> 852.7 | DL34: =IF(WB_1x2_slipON="No",WBR_Master,0) -> 0 | DM34: pc/h | EC34: LTR,R | EE34: =0.47*SUM($BS$55:$BS$66) -> 37.6
AU35: Right-turn Bypass | AY35: =IF(WB_1x2_slipON="NO","n/a",IF(AND(WB_1x2_slipON="Yes",WB_1x2_slipType=2),0,CJ20)) -> 0.5131494548 | BC35: V/C | BV35: =ROUND(FHV_SB*BV33,1) -> 650 | CY35: =ROUND(FHV_WB*WB_fped_ML*CY33,1) -> 526.6 | DA35: =ROUND(FHV_WB*WB_fped_ML*DA33,1) -> 526.6 | DC35: veh/h
C36: Approach delay, s/veh | K36: =IF(SB_1x2_slipON="Yes",(G22*BV35+G30*BO39)/(BV35+BO39),G22) -> 17.18823529 | BO36: pc/h | BV36: V/C RATIO
AY37: =IF(WB_1x2_slipON="NO","n/a",IF(AND(WB_1x2_slipON="Yes",WB_1x2_slipType=2),0,ROUND(3600/CP20+900*0.25*(CJ20-1+SQRT((CJ20-1)^2+((3600/CP20)*CJ20)/(450*0.25)))+(5*(MIN(CJ20,1))),1))) -> 11.9 | BC37: d, s/veh | BO37: =IF(SB_1x2_slipON="Yes",SBR_Master,"n/a") -> 200 | CY37: 1 | DA37: 2 | DC37: Lane Cap. | DD37: =BT68+DD76+DG76+DJ76+CB24 -> 1090 | DL37: =WBT_Master -> 20 | DM37: pc/h | EC37: WB_leftlaneVolProp
BO38: veh/h | EC38: L,TR | EE38: =$DL$43+$DL$40 -> 50
AY39: =IF(WB_1x2_slipON="Yes",VLOOKUP(AY37,LOS,2,TRUE),"n/a") -> B | BC39: LOS | BO39: =IF(SB_1x2_slipON="No","n/a",ROUND(FHV_SB*SB_fped_SL*BO37,1)) -> 200 | BV39: =BV35/CF34 -> 0.762284508 | EC39: LT,R | EE39: =$DL$43+$DL$40+$DL$37 -> 70
BO40: capacity | DL40: =WBL_Master -> 50 | DM40: pc/h | EC40: LT,TR | EE40: =0.47*SUM(DL34:DL45) -> 32.9
AT41: ` | AY41: =IF(WB_1x2_slipON="NO","n/a",IF(AND(WB_1x2_slipON="yes",WB_1x2_slipType=2),0,ROUNDUP(900*0.25*(CJ20-1+SQRT((CJ20-1)^2+((3600/CP20)*CJ20)/(150*0.25)))*(CP20/3600),0))) -> 3 | BC41: Q95, veh | BO41: pc/h | BV41: 1 | EC41: L,LTR | EE41: =0.53*SUM(DL34:DL45) -> 37.1
BO42: =IF(SB_1x2_slipON="No","n/a",IF(SB_1x2_slipType=0,$CL$13*EXP(-$CS$13*EB_1x2_Leg_ExitFlow),IF(SB_1x2_slipType=1,$CL$15*EXP(-$CS$15*EB_1x2_Leg_ExitFlow),"large"))) -> 787.4806336 | EC42: LTR,R | EE42: =0.47*SUM(DL34:DL45) -> 32.9
AU43: Approach delay, s/veh | BC43: =IF(WB_1x2_slipON="Yes",(AY21*CY29+AY29*CY26+AY37*CU20)/(CY29+CY26+CU20),(AY21*CY29+AY29*CY26)/(CY26+CY29)) -> 11.2893617 | BO43: veh/h | DL43: =WBU_Master -> 0 | DM43: pc/h
BO44: =IF(SB_1x2_slipON="no","n/a",IF(SB_1x2_slipType=2,"large",ROUND(FHV_SB*SB_fped_SL*BO42,1))) -> 787.5
BO45: conflicting with | EC45: EB | EE45: NB | EG45: SB | EI45: WB
BO47: pc/h | EC47: LT,TR | ED47: =IF($BS$55+$BS$58>$BS$61+$BS$64,"L,TR",IF($BS$64>$BS$55+$BS$58+$BS$61,"LT,R","LT,TR")) -> L,TR | EE47: LT,TR | EF47: =IF(DD76+DG76>DJ76+DM76,"L,TR",IF(DM76>DD76+DG76+DJ76,"LT,R","LT,TR")) -> L,TR | EG47: LT,TR | EH47: =IF(CB24+BY24>BV24+BS24,"L,TR",IF(BS24>CB24+BY24+BV24,"LT,R","LT,TR")) -> L,TR | EI47: LT,TR | EJ47: =IF($DL$43+$DL$40>$DL$37+$DL$34,"L,TR",IF($DL$34>$DL$43+$DL$40+$DL$37,"LT,R","LT,TR")) -> L,TR
BO48: =IF(SB_1x2_slipON="No","n/a",$BS$55+$DG$76+$DL$37) -> 550 | DL48: =IF(NB_1x2_slipON="No","n/a",IF(AND(NB_1x2_slipON="Yes",NB_1x2_slipType=2),0,DL59/DL54)) -> n/a | EC48: L,LTR | ED48: =IF(BS61+BS64>BS55+BS58,"L,TR","L,LTR") -> L,LTR | EE48: L,LTR | EF48: =IF(DJ76+DM76>DD76+DG76,"L,TR","L,LTR") -> L,LTR | EG48: L,LTR | EH48: =IF(BV24+BS24>CB24+BY24,"L,TR","L,LTR") -> L,LTR | EI48: L,LTR | EJ48: =IF(DL37+DL34>DL43+DL40,"L,TR","L,LTR") -> L,LTR
BO49: V/C RATIO | DL49: V/C RATIO | EC49: LTR,R | ED49: =IF(BS55+BS58+BS61>BS64,"LT,R","LTR,R") -> LT,R | EE49: LTR,R | EF49: =IF(DD76+DG76+DJ76>DM76,"LT,R","LTR,R") -> LT,R | EG49: LTR,R | EH49: =IF(CB24+BY24+BV24>BS24,"LT,R","LTR,R") -> LT,R | EI49: LTR,R | EJ49: =IF(DL43+DL40+DL37>DL34,"LT,R","LTR,R") -> LT,R
C50: Predicted approach capacity | BO50: =IF(SB_1x2_slipON="No","n/a",IF(AND(SB_1x2_slipON="Yes",SB_1x2_slipType=2),0,BO39/BO44)) -> 0.253968254 | DL50: =IF(NB_slipON="No","n/a",$DL$43+$BY$24+$BS$61) -> 380 | EC50: Not Sure | ED50: =IF($BS$55+$BS$58>$BS$61+$BS$64,"L,TR",IF($BS$64>$BS$55+$BS$58+$BS$61,"LT,R","LT,TR")) -> L,TR | EI50: Not Sure | EJ50: =IF($DL$43+$DL$40>$DL$37+$DL$34,"L,TR",IF($DL$34>$DL$43+$DL$40+$DL$37,"LT,R","LT,TR")) -> L,TR
DL51: pc/h
DL52: conflicting with
C53: Lane 1 | G53: =CJ66 -> 0.06657789614 | K53: V/C
DL54: =IF(NB_1x2_slipON="No","n/a",IF(NB_1x2_slipType=2,"large",ROUND(FHV_NB*NB_fped_SL*DL56,1))) -> n/a
G55: =ROUND(3600/CE63+900*0.25*(CJ66-1+SQRT((CJ66-1)^2+((3600/CE63)*CJ66)/(450*0.25)))+(5*(MIN(CJ66,1))),1) -> 5.5 | K55: d, s/veh | AS55: =+IF(AY59>1,1,0) -> 1 | BR55: pc/h | BS55: =EBU_Master -> 0 | DL55: veh/h | EC55: *NOTE
AU56: Predicted approach capacity | BY56: Conflicting flow | BZ56: =DJ30+CB24+BY24+BV24+DD76 -> 700 | CB56: Lane Cap. | CC56: 2 | CE56: 1 | DH56: 1 | DL56: =IF(NB_1x2_slipON="No","n/a",IF(NB_1x2_slipType=0,CL13*EXP(-CS13*WB_1x2_Leg_ExitFlow),IF(NB_1x2_slipType=1,CL15*EXP(-CS15*WB_1x2_Leg_ExitFlow),"large"))) -> n/a | EC56: "Note Sure"==LT,TR
G57: =IF(G53<=1,VLOOKUP(G55,LOS,2,TRUE),"F") -> A | K57: LOS | DL57: pc/h
BR58: pc/h | BS58: =EBL_Master -> 50 | DH58: =DH63/DE63 -> 1.06566528 | DL58: capacity
G59: =ROUNDUP(900*0.25*(CJ66-1+SQRT((CJ66-1)^2+((3600/CE63)*CJ66)/(150*0.25)))*(CE63/3600),0) -> 1 | K59: Q95, veh | AU59: Lane 1 | AY59: =DH58 -> 1.06566528 | BC59: V/C | DL59: =IF(NB_1x2_slipON="No","n/a",ROUND(FHV_NB*NB_fped_SL*DL61,1)) -> n/a
DH60: V/C RATIO | DL60: veh/h
C61: Lane 2 | G61: =CJ69 -> 0.03994673768 | K61: V/C | AY61: =ROUND(3600/DE63+900*0.25*(DH58-1+SQRT((DH58-1)^2+((3600/DE63)*DH58)/(450*0.25)))+(5*(MIN(DH58,1))),1) -> 67.8 | BC61: d, s/veh | BR61: pc/h | BS61: =EBT_Master -> 30 | CB61: pc/h | CC61: =$CL$17*EXP(-$CS$17*BZ56) -> 751.0048806 | CE61: =$CL$17*EXP(-$CS$17*BZ56) -> 751.0048806 | DL61: =IF(NB_1x2_slipON="Yes",NBR_Master,"n/a") -> n/a
DL62: pc/h
G63: =ROUND(3600/CC63+900*0.25*(CJ69-1+SQRT((CJ69-1)^2+((3600/CC63)*CJ69)/(450*0.25)))+(5*(MIN(CJ69,1))),1) -> 5.2 | K63: d, s/veh | AY63: =IF(AY59<=1,VLOOKUP(AY61,LOS,2,TRUE),"F") -> F | BC63: LOS | CB63: veh/h | CC63: =ROUND(FHV_EB*EB_fped_ML*CC61,1) -> 751 | CE63: =ROUND(FHV_EB*EB_fped_ML*CE61,1) -> 751 | CY63: 1 | DC63: =$CL$11*EXP(-$CS$11*(CY66+CY68)) -> 985.2664878 | DE63: =ROUND(FHV_NB*NB_fped_SL*DC63,1) -> 985.3 | DH63: =ROUND(FHV_NB*DH65,1) -> 1050 | DL63: No
BR64: pc/h | BS64: =IF(EB_1x2_slipON="No",EBR_Master,0) -> 0 | DH64: veh/h
G65: =IF(G61<=1,VLOOKUP(G63,LOS,2,TRUE),"F") -> A | K65: LOS | AY65: =ROUNDUP(900*0.25*(DH58-1+SQRT((DH58-1)^2+((3600/DE63)*DH58)/(150*0.25)))*(DE63/3600),0) -> 25 | BC65: Q95, veh | CY65: Lane Cap. | DC65: pc/h | DE65: veh/h | DH65: =DG76+DJ76+DM76+DD76 -> 1050 | DL65: Type1b (yielding)
CC66: pc/h | CD66: =VLOOKUP(BP78,EB_1x2_LeftLane_VolProp,3,FALSE) -> 50 | CE66: veh/h | CF66: =ROUND(FHV_EB*CD66,1) -> 50 | CG66: V/C RATIO | CJ66: =CF66/CE63 -> 0.06657789614 | CL66: 1 | CY66: =BT68 -> 50 | DH66: pc/h
G67: =ROUNDUP(900*0.25*(CJ69-1+SQRT((CJ69-1)^2+((3600/CC63)*CJ69)/(150*0.25)))*(CC63/3600),0) -> 1 | K67: Q95, veh | AU67: Right-turn Bypass | AY67: =IF(NB_1x2_slipON="NO","n/a",IF(AND(NB_1x2_slipON="Yes",NB_1x2_slipType=2),0,DL48)) -> n/a | BC67: V/C | DL67: Right-turn Bypass Lane
BN68: Right turn to Total Flow Ratio | BP68: Roundabout Entry Lane Discipline | BT68: =BS58+BS55 -> 50 | CY68: =BV75+BY24+DL43+BV71+CB24 -> 380
C69: Right-turn Bypass | G69: =IF(EB_1x2_slipON="NO","n/a",IF(AND(EB_1x2_slipON="Yes",EB_1x2_slipType=2),0,CU73)) -> 0.1422340224 | K69: V/C | AY69: =IF(NB_1x2_slipON="NO","n/a",IF(AND(NB_1x2_slipON="Yes",NB_1x2_slipType=2),0,ROUND(3600/DL54+900*0.25*(DL48-1+SQRT((DL48-1)^2+((3600/DL54)*DL48)/(450*0.25)))+(5*(MIN(DL48,1))),1))) -> n/a | BC69: d, s/veh | CC69: pc/h | CD69: =SUM(BS55:BS66)-CD66 -> 30 | CE69: veh/h | CF69: =ROUND(FHV_EB*CD69,1) -> 30 | CG69: V/C RATIO | CJ69: =CF69/CC63 -> 0.03994673768 | CL69: 2
CY70: Conflicting flow
G71: =IF(EB_1x2_slipON="NO","n/a",IF(AND(EB_1x2_slipON="Yes",EB_1x2_slipType=2),0,ROUND(3600/CO73+900*0.25*(CU73-1+SQRT((CU73-1)^2+((3600/CO73)*CU73)/(450*0.25)))+(5*(MIN(CU73,1))),1))) -> 4.7 | K71: d, s/veh | AY71: =IF(NB_1x2_slipON="Yes",VLOOKUP(AY69,LOS,2,TRUE),"n/a") -> n/a | BC71: LOS | BV71: =CD66-BT68 -> 0
G73: =IF(EB_1x2_slipON="Yes",VLOOKUP(G71,LOS,2,TRUE),"n/a") -> A | K73: LOS | AY73: =IF(NB_1x2_slipON="NO","n/a",IF(AND(NB_1x2_slipON="yes",NB_1x2_slipType=2),0,ROUNDUP(900*0.25*(DL48-1+SQRT((DL48-1)^2+((3600/DL54)*DL48)/(150*0.25)))*(DL54/3600),0))) -> n/a | BC73: Q95, veh | BY73: Right-turn Bypass Lane | CA73: Yes | CG73: pc/h | CH73: =IF(EB_1x2_slipON="Yes",EBR_Master,"n/a") -> 150 | CI73: veh/h | CJ73: =IF(EB_1x2_slipON="No","n/a",ROUND(CH73*FHV_EB*EB_fped_SL,1)) -> 150 | CK73: capacity | CL73: pc/h | CM73: =IF(EB_1x2_slipON="No","n/a",IF(EB_1x2_slipType=0,$CL$13*EXP(-$CS$13*NB_1x2_Leg_ExitFlow),IF(EB_1x2_slipType=1,$CL$15*EXP(-$CS$15*NB_1x2_Leg_ExitFlow),"large"))) -> 1054.595068 | CN73: veh/h | CO73: =IF(EB_1x2_slipON="No","n/a",IF(EB_1x2_slipType=2,"large",ROUND(FHV_EB*EB_fped_SL*CM73,1))) -> 1054.6 | CP73: conflicting with | CR73: pc/h | CS73: =IF(EB_1x2_slipON="No","n/a",($DL$40+$BV$24+$DD$76)) -> 350 | CT73: V/C Ratio | CU73: =IF(EB_1x2_slipON="No","n/a",IF(AND(EB_1x2_slipON="Yes",EB_1x2_slipType=2),0,CJ73/CO73)) -> 0.1422340224
G75: =IF(EB_1x2_slipON="NO","n/a",IF(AND(EB_1x2_slipON="yes",EB_1x2_slipType=2),0,ROUNDUP(900*0.25*(CU73-1+SQRT((CU73-1)^2+((3600/CO73)*CU73)/(150*0.25)))*(CO73/3600),0))) -> 1 | K75: Q95, veh | AU75: Approach delay, s/veh | BC75: =IF(NB_1x2_slipON="Yes",(AY61*DH63+AY69*DL59)/(DH63+DL59),AY61) -> 67.8 | BV75: =CD69-BT78 -> 30 | CA75: Type1b (yielding)
DD76: =NBU_Master -> 0 | DG76: =NBL_Master -> 530 | DJ76: =NBT_Master -> 510 | DM76: =IF(NB_1x2_slipON="No",NBR_Master,0) -> 10
C77: Approach delay, s/veh | K77: =IF(EB_1x2_slipON="Yes",(G55*CF66+G63*CF69+G71*CJ73)/(CF66+CF69+CJ73),(G55*CF66+G63*CF69)/(CF66+CF69)) -> 4.939130435 | DD77: pc/h | DG77: pc/h | DJ77: pc/h | DM77: pc/h
BN78: =BS64/(BS64+BS61+BS58+BS55) -> 0 | BP78: =VLOOKUP(EB_LaneDesig,EB_1x2_lanedesignate,2,FALSE) -> L,TR | BT78: =BS64 -> 0

Sheet 2 NS x 1 EW Rndabt
B1: 2 NS x 1 EW Lane Roundabout | BL1: 2 NS x 1 EW Lane Roundabout
B3: Results Sheet | BL3: Design Sheet
EC4: SB_LeftlaneVolProp | EL4: NB_leftlaneVolProp
EC5: L,TR | EE5: =SUM(CM16:CR16) -> 350 | EL5: L,TR | EN5: =SUM($CO$69:$CT$69) -> 530
C6: Project Name: | K6: =P_Name -> 0 | EC6: LT,R | EE6: =SUM(CJ16:CR16) -> 650 | EL6: LT,R | EN6: =SUM($CO$69:$CW$69) -> 1040
EC7: LT,TR | EE7: =0.47*SUM(CG16:CR16) -> 305.5 | EL7: LT,TR | EN7: =0.47*SUM(CO69:CZ69) -> 488.8
C8: Project Number: | K8: =P_Number -> Enter the Project Number here (Input worksheet) | EC8: L,LTR | EE8: =0.53*SUM(CG16:CR16) -> 344.5 | EL8: L,LTR | EN8: =0.53*SUM(CO69:CZ69) -> 551.2
CX9: Equation | DE9: A x exp(-B x Q) | EC9: LTR,R | EE9: =0.47*SUM(CG16:CR16) -> 305.5 | EL9: LTR,R | EN9: =0.47*SUM(CO69:CZ69) -> 488.8
C10: Location | K10: =Location -> Enter the Project Location here (Input worksheet) | AK10: Overal Roundabout Delay, s/veh | BC10: =(N44*(BU29+BX29+SB_2x1_ApprSlipVol)+BB36*(CZ27+WB_2x1_ApprSlipVol)+BC77*(DD55+DG55+NB_2x1_ApprSlipVol)+M74*(CD58+EB_2x1_ApprSlipVol))/(BX29+BU29+SB_2x1_ApprSlipVol+CZ27+WB_2x1_ApprSlipVol+DD55+DG55+NB_2x1_ApprSlipVol+CD58+EB_2x1_ApprSlipVol) -> 9.397307692
BR11: Right turn to Total Flow Ratio | CB11: =CG16/(CG16+CJ16+CM16+CP16) -> 0 | CX11: 1 Entry, 2 Circ. | DC11: A | DE11: 1420 | DJ11: B | DL11: 0.00085
C12: Date | K12: =Date -> Enter the date here (Input worksheet) | AK12: Overal Roundabout LOS | BC12: =VLOOKUP(BC10,LOS,2,TRUE) -> A | EC12: Rigt-turn Slip Type | EL12: EB | EM12: WB | EN12: SB | EO12: NB
BR13: Roundabout Entry Lane Discipline | CB13: =VLOOKUP(SB_LaneDesig,SB_2x1_lanedesignate,2,FALSE) -> L,TR | CX13: Bypass Type1a | DC13: A | DE13: 1380 | DJ13: B | DL13: 0.00102 | EC13: Type1a (yielding) | ED13: 0 | EL13: =VLOOKUP(BW64,RT_slip_type,2,FALSE) -> 1 | EM13: =VLOOKUP(CZ23,RT_slip_type,2,FALSE) -> 0 | EN13: =VLOOKUP(BN28,RT_slip_type,2,FALSE) -> 2 | EO13: =VLOOKUP(DK59,RT_slip_type,2,FALSE) -> 0
EC14: Type1b (yielding) | ED14: 1
CG15: pc/h | CJ15: pc/h | CM15: pc/h | CP15: pc/h | CX15: Bypass Type1b | DC15: A | DE15: 1420 | DJ15: B | DL15: 0.00085 | EC15: Type2 (nonyielding) | ED15: 2
BR16: =CG16 -> 0 | CB16: =CM16+CP16 -> 350 | CG16: =IF(SB_2x1_slipON="No",SBR_Master,0) -> 0 | CJ16: =SBT_Master -> 300 | CM16: =SBL_Master -> 350 | CP16: =SBU_Master -> 0
F17: Predicted approach capacity | AT17: Predicted approach capacity | CX17: 2 Entry, 1 Circ. | DC17: A | DE17: 1420 | DJ17: B | DL17: 0.00091
BU19: =BU27-BR16 -> 300 | BY19: =BX27-CB16 -> 0
F20: Lane 1 | J20: =BX33 -> 0.4254801848 | N20: V/C | AT20: Lane 1 | AX20: =CU27 -> 0.1245108502 | BB20: V/C
CK21: =IF(WB_2x1_slipON="No","n/a",IF(AND(WB_2x1_slipON="Yes",WB_2x1_slipType=2),0,CV21/CQ21)) -> 0.5131494548 | CL21: V/C RATIO | CM21: =IF(WB_2x1_slipON="No","n/a",$CU$69+$CP$16+$BS$51) -> 560 | CN21: pc/h | CO21: conflicting with | CQ21: =IF(WB_2x1_slipON="No","n/a",IF(WB_2x1_slipType=2,"large",ROUND(FHV_WB*WB_fped_SL*CS21,1))) -> 779.5 | CR21: veh/h | CS21: =IF(WB_2x1_slipON="No","n/a",IF(WB_2x1_slipType=0,$DE$13*EXP(-$DL$13*SB_2x1_Leg_ExitFlow),IF(WB_2x1_slipType=1,$DE$15*EXP(-$DL$15*SB_2x1_Leg_ExitFlow),"large"))) -> 779.489157 | CT21: pc/h | CU21: capacity | CV21: =IF(WB_2x1_slipON="No","n/a",ROUND(FHV_WB*WB_fped_SL*CX21,1)) -> 400 | CW21: veh/h | CX21: =IF(WB_2x1_slipON="Yes",WBR_Master,"n/a") -> 400 | CY21: pc/h | CZ21: Yes | DF21: Right-turn Bypass Lane
J22: =ROUND(3600/CH26+900*0.25*(BX33-1+SQRT((BX33-1)^2+((3600/CH26)*BX33)/(450*0.25)))+(5*(MIN(BX33,1))),1) -> 9.7 | N22: d, s/veh | AX22: =ROUND(3600/CZ33+900*0.25*(CU27-1+SQRT((CU27-1)^2+((3600/CZ33)*CU27)/(450*0.25)))+(5*(MIN(CU27,1))),1) -> 7.9 | BB22: d, s/veh | BN22: Right-turn Bypass Lane | CB22: Conflicting flow | EC22: Right-turn Slip
CB23: =DB67+DK37+DK34+DK31+BS48 -> 600 | CZ23: Type1a (yielding) | EJ23: EB | EL23: WB | EO23: SB | EQ23: NB
J24: =IF(J20<=1,VLOOKUP(J22,LOS,2,TRUE),"F") -> A | N24: LOS | AX24: =IF(AX20<=1,VLOOKUP(AX22,LOS,2,TRUE),"F") -> A | BB24: LOS | EC24: No | ED24: 0 | EJ24: =BW62 -> No | EL24: =CZ21 -> Yes | EO24: =BN26 -> Yes | EQ24: =DK58 -> Yes
CB25: Lane Cap. | CF25: pc/h | CH25: veh/h | EC25: Yes | ED25: 1
J26: =ROUNDUP(900*0.25*(BX33-1+SQRT((BX33-1)^2+((3600/CH26)*BX33)/(150*0.25)))*(CH26/3600),0) -> 3 | N26: Q95, veh | AX26: =ROUNDUP(900*0.25*(CU27-1+SQRT((CU27-1)^2+((3600/CZ33)*CU27)/(150*0.25)))*(CZ33/3600),0) -> 1 | BB26: Q95, veh | BN26: Yes | BU26: pc/h | BX26: pc/h | CB26: 1 | CF26: =$DE$17*EXP(-$DL$17*CB23) -> 822.5523686 | CH26: =ROUND(FHV_SB*SB_fped_ML*CF26,1) -> 822.6
BU27: =SUM(CG16:CR16)-BX27 -> 300 | BX27: =VLOOKUP(CB13,SB_2x1_Leftlane_VolProp,3,FALSE) -> 350 | CS27: 1 | CU27: =CZ27/CZ33 -> 0.1245108502 | CW27: V/C RATIO | CZ27: =ROUND(FHV_WB*DB27,1) -> 70 | DA27: veh/h | DB27: =DK34+DK31+DK28+DK37 -> 70 | DC27: pc/h
F28: Lane 2 | J28: =BU33 -> 0.3646973012 | N28: V/C | AT28: Right-turn Bypass | AX28: =IF(WB_2x1_slipON="NO","n/a",IF(AND(WB_2x1_slipON="Yes",WB_2x1_slipType=2),0,CK21)) -> 0.5131494548 | BB28: V/C | BN28: Type2 (nonyielding) | BU28: veh/h | BX28: veh/h | CB28: 2 | CF28: =$DE$17*EXP(-$DL$17*CB23) -> 822.5523686 | CH28: =ROUND(FHV_SB*SB_fped_ML*CF28,1) -> 822.6 | DK28: =IF(WB_2x1_slipON="No",WBR_Master,0) -> 0 | DL28: pc/h
BU29: =ROUND(FHV_SB*BU27,1) -> 300 | BX29: =ROUND(FHV_SB*BX27,1) -> 350
J30: =ROUND(3600/CH28+900*0.25*(BU33-1+SQRT((BU33-1)^2+((3600/CH28)*BU33)/(450*0.25)))+(5*(MIN(BU33,1))),1) -> 8.7 | N30: d, s/veh | AX30: =IF(WB_2x1_slipON="NO","n/a",IF(AND(WB_2x1_slipON="Yes",WB_2x1_slipType=2),0,ROUND(3600/CQ21+900*0.25*(CK21-1+SQRT((CK21-1)^2+((3600/CQ21)*CK21)/(450*0.25)))+(5*(MIN(CK21,1))),1))) -> 11.9 | BB30: d, s/veh | BN30: pc/h | BU30: V/C RATIO | BX30: V/C RATIO | EC30: Slip Approach vol
BN31: =IF(SB_2x1_slipON="Yes",SBR_Master,"n/a") -> 200 | CZ31: =$DE$11*EXP(-$DL$11*(DE35+DC35)) -> 562.2306363 | DB31: pc/h | DG31: Conflicting flow | DK31: =WBT_Master -> 20 | DL31: pc/h | EC31: =IF(EB_2x1_slipON="No",0,CE62) -> 0
J32: =IF(J28<=1,VLOOKUP(J30,LOS,2,TRUE),"F") -> A | N32: LOS | AX32: =IF(WB_2x1_slipON="Yes",VLOOKUP(AX30,LOS,2,TRUE),"n/a") -> B | BB32: LOS | BN32: veh/h | EC32: =IF(WB_2x1_slipON="No",0,CV21) -> 400
BN33: =IF(SB_2x1_slipON="No","n/a",ROUND(FHV_SB*SB_fped_SL*BN31,1)) -> 200 | BU33: =BU29/CH28 -> 0.3646973012 | BX33: =BX29/CH26 -> 0.4254801848 | CZ33: =ROUND(FHV_WB*WB_fped_SL*CZ31,1) -> 562.2 | DB33: veh/h | EC33: =IF(NB_2x1_slipON="No",0,DK54) -> 10
J34: =ROUNDUP(900*0.25*(BU33-1+SQRT((BU33-1)^2+((3600/CH28)*BU33)/(150*0.25)))*(CH28/3600),0) -> 2 | N34: Q95, veh | AX34: =IF(WB_2x1_slipON="NO","n/a",IF(AND(WB_2x1_slipON="yes",WB_2x1_slipType=2),0,ROUNDUP(900*0.25*(CK21-1+SQRT((CK21-1)^2+((3600/CQ21)*CK21)/(150*0.25)))*(CQ21/3600),0))) -> 3 | BB34: Q95, veh | BN34: capacity | DK34: =WBL_Master -> 50 | DL34: pc/h | EC34: =IF(SB_2x1_slipON="No",0,BN33) -> 200
BN35: pc/h | BU35: 2 | BX35: 1 | CZ35: 1 | DB35: Lane Cap. | DC35: =DE65+DB67+BS48+BS51+CP16 -> 580 | DE35: =DI65 -> 510
F36: Right-turn Bypass | J36: =IF(SB_2x1_slipON="NO","n/a",IF(AND(SB_2x1_slipON="Yes",SB_2x1_slipType=2),0,BN44)) -> 0 | N36: V/C | AT36: Approach delay, s/veh | BB36: =IF(WB_2x1_slipON="Yes",(AX30*CV21+AX22*CZ27)/(CV21+CZ27),(AX22*CZ27)/CZ27) -> 11.30425532 | BN36: =IF(SB_2x1_slipON="No","n/a",IF(SB_2x1_slipType=0,$DE$13*EXP(-$DL$13*EB_2x1_Leg_ExitFlow),IF(SB_2x1_slipType=1,$DE$15*EXP(-$DL$15*EB_2x1_Leg_ExitFlow),"large"))) -> large
BN37: veh/h | DK37: =WBU_Master -> 0 | DL37: pc/h | EC37: EB | EE37: NB | EG37: SB | EI37: WB
J38: =IF(SB_2x1_slipON="NO","n/a",IF(AND(SB_2x1_slipON="Yes",SB_2x1_slipType=2),0,ROUND(3600/BN38+900*0.25*(BN44-1+SQRT((BN44-1)^2+((3600/BN38)*BN44)/(450*0.25)))+(5*(MIN(BN44,1))),1))) -> 0 | N38: d, s/veh | BN38: =IF(SB_2x1_slipON="no","n/a",IF(SB_2x1_slipType=2,"large",ROUND(FHV_SB*SB_fped_SL*BN36,1))) -> large
BN39: conflicting with | EC39: LT,TR | ED39: =IF(BS47+BS50>BS53+BS56,"L,TR",IF(BS56>BS47+BS50+BS53,"LT,R","LT,TR")) -> LT,TR | EE39: LT,TR | EF39: =IF($CO$69+$CR$69>$CU$69+$CX$69,"L,TR",IF($CX$69>$CO$69+$CR$69+$CU$69,"LT,R","LT,TR")) -> L,TR | EG39: LT,TR | EH39: =IF($CP$16+$CM$16>$CJ$16+$CG$16,"L,TR",IF($CG$16>$CP$16+$CM$16+$CJ$16,"LT,R","LT,TR")) -> L,TR | EI39: LT,TR | EJ39: =IF($DL$35+$DL$32>$DL$29+$DL$26,"L,TR",IF($DL$26>$DL$35+$DL$32+$DL$29,"LT,R","LT,TR")) -> LT,TR
J40: =IF(SB_2x1_slipON="Yes",VLOOKUP(J38,LOS,2,TRUE),"n/a") -> A | N40: LOS | EC40: L,LTR | ED40: =IF(BS53+BS56>BS47+BS50,"L,TR","L,LTR") -> L,LTR | EE40: L,LTR | EF40: =IF(CU69+CX69>CO69+CR69,"L,TR","L,LTR") -> L,LTR | EG40: L,LTR | EH40: =IF(CG16+CJ16>CM16+CP16,"L,TR","L,LTR") -> L,LTR | EI40: L,LTR | EJ40: =IF(DL29+DL26>DL35+DL32,"L,TR","L,LTR") -> L,LTR
BN41: pc/h | EC41: LTR,R | ED41: =IF(BS47+BS50+BS53>BS56,"LT,R","LTR,R") -> LTR,R | EE41: LTR,R | EF41: =IF(CO69+CR69+CU69>CX69,"LT,R","LTR,R") -> LT,R | EG41: LTR,R | EH41: =IF(CP16+CM16+CJ16>CG16,"LT,R","LTR,R") -> LT,R | EI41: LTR,R | EJ41: =IF(DL35+DL32+DL29>DL26,"LT,R","LTR,R") -> LTR,R
J42: =IF(SB_2x1_slipON="NO","n/a",IF(AND(SB_2x1_slipON="yes",SB_2x1_slipType=2),0,ROUNDUP(900*0.25*(BN44-1+SQRT((BN44-1)^2+((3600/BN38)*BN44)/(150*0.25)))*(BN38/3600),0))) -> 0 | N42: Q95, veh | BN42: =IF(SB_2x1_slipON="No","n/a",$DK$31+$CR$69+$BS$48) -> 550 | EE42: Not Sure | EF42: =IF($CO$69+$CR$69>$CU$69+$CX$69,"L,TR",IF($CX$69>$CO$69+$CR$69+$CU$69,"LT,R","LT,TR")) -> L,TR | EG42: Not Sure | EH42: =IF($CP$16+$CM$16>$CJ$16+$CG$16,"L,TR",IF($CG$16>$CP$16+$CM$16+$CJ$16,"LT,R","LT,TR")) -> L,TR
BN43: V/C RATIO | DK43: =IF(NB_2x1_slipON="No","n/a",IF(AND(NB_2x1_slipON="Yes",NB_2x1_slipType=2),0,DK54/DK49)) -> 0.01067691651
F44: Approach delay, s/veh | N44: =IF(SB_2x1_slipON="Yes",(J38*BN33+J22*BX29+J30*BU29)/(BN33+BX29+BU29),(J22*BX29+J30*BU29)/(BX29+BU29)) -> 7.064705882 | BN44: =IF(SB_2x1_slipON="No","n/a",IF(AND(SB_2x1_slipON="Yes",SB_2x1_slipType=2),0,BN33/BN38)) -> 0 | DK44: V/C RATIO
DK45: =IF(NB_2x1_slipON="No","n/a",$BS$54+$CM$16+$DK$37) -> 380 | EC45: *NOTE
DK46: pc/h | EC46: "Note Sure"==LT,TR
DK47: conflicting with
BR48: pc/h | BS48: =EBU_Master -> 0 | BW48: Conflicting flow | BX48: =BU19 -> 300 | BZ48: =BY19+CB16+DK37+DK34+CO69 -> 400 | CB48: Lane Cap. | CC48: 1 | DD48: 1 | DG48: 2
DK49: =IF(NB_2x1_slipON="No","n/a",IF(NB_2x1_slipType=2,"large",ROUND(FHV_NB*NB_fped_SL*DK51,1))) -> 936.6
AU50: Predicted approach capacity | DD50: =DD55/DA55 -> 0.5519683399 | DG50: =DG55/DA57 -> 0.531139346 | DK50: veh/h
BR51: pc/h | BS51: =EBL_Master -> 50 | DK51: =IF(NB_2x1_slipON="No","n/a",IF(NB_2x1_slipType=0,$DE$13*EXP(-$DL$13*WB_2x1_Leg_ExitFlow),IF(NB_2x1_slipType=1,$DE$15*EXP(-$DL$15*WB_2x1_Leg_ExitFlow),"large"))) -> 936.5835922
DD52: V/C RATIO | DG52: V/C RATIO | DK52: pc/h
AU53: Lane 1 | AY53: =DD50 -> 0.5519683399 | BC53: V/C | CB53: pc/h | CC53: =$DE$11*EXP(-$DL$11*(BX48+BZ48)) -> 783.2188435 | DK53: capacity
BR54: pc/h | BS54: =EBT_Master -> 30 | DK54: =IF(NB_2x1_slipON="No","n/a",ROUND(FHV_NB*NB_fped_SL*DK56,1)) -> 10
E55: Predicted approach capacity | AY55: =ROUND(3600/DA55+900*0.25*(DD50-1+SQRT((DD50-1)^2+((3600/DA55)*DD50)/(450*0.25)))+(5*(MIN(DD50,1))),1) -> 11 | BC55: d, s/veh | CB55: veh/h | CC55: =ROUND(FHV_EB*EB_fped_SL*CC53,1) -> 783.2 | CU55: 1 | CY55: =$DE$17*EXP(-$DL$17*CU60) -> 960.1717268 | DA55: =ROUND(FHV_NB*NB_fped_ML*CY55,1) -> 960.2 | DD55: =ROUND(FHV_NB*DD57,1) -> 530 | DG55: =ROUND(FHV_NB*DG57,1) -> 510 | DK55: veh/h
DD56: veh/h | DG56: veh/h | DK56: =IF(NB_2x1_slipON="Yes",NBR_Master,"n/a") -> 10
AY57: =IF(AY53<=1,VLOOKUP(AY55,LOS,2,TRUE),"F") -> B | BC57: LOS | BR57: pc/h | BS57: =IF(EB_2x1_slipON="No",EBR_Master,0) -> 150 | CU57: 2 | CY57: =$DE$17*EXP(-$DL$17*CU60) -> 960.1717268 | DA57: =ROUND(FHV_NB*NB_fped_ML*CY57,1) -> 960.2 | DD57: =VLOOKUP(DL71,NB_2x1_Leftlane_VolProp,3,FALSE) -> 530 | DG57: =SUM(CO69:CZ69)-DD57 -> 510 | DK57: pc/h
E58: Lane 1 | I58: =CH58 -> 0.2936670072 | M58: V/C | CA58: pc/h | CB58: =BS51+BS54+BS57+BS48 -> 230 | CC58: veh/h | CD58: =ROUND(FHV_EB*CB58,1) -> 230 | CE58: V/C RATIO | CH58: =CD58/CC55 -> 0.2936670072 | CJ58: 1 | DD58: pc/h | DG58: pc/h | DK58: Yes
AY59: =ROUNDUP(900*0.25*(DD50-1+SQRT((DD50-1)^2+((3600/DA55)*DD50)/(150*0.25)))*(DA55/3600),0) -> 4 | BC59: Q95, veh | CU59: Lane Cap. | CY59: pc/h | DA59: veh/h | DK59: Type1a (yielding)
I60: =ROUND(3600/CC55+900*0.25*(CH58-1+SQRT((CH58-1)^2+((3600/CC55)*CH58)/(450*0.25)))+(5*(MIN(CH58,1))),1) -> 8 | M60: d, s/veh | CU60: =CB16+BS51+DK37+BS48+BS54 -> 430
AU61: Lane 2 | AY61: =DG50 -> 0.531139346 | BC61: V/C | DK61: Right-turn Bypass Lane
I62: =IF(I58<=1,VLOOKUP(I60,LOS,2,TRUE),"F") -> A | M62: LOS | BU62: Right-turn Bypass Lane | BW62: No | CB62: pc/h | CC62: =IF(EB_2x1_slipON="Yes",EBR_Master,"n/a") -> n/a | CD62: veh/h | CE62: =IF(EB_2x1_slipON="No","n/a",ROUND(CC62*FHV_EB*EB_fped_SL,1)) -> n/a | CF62: capacity | CG62: pc/h | CH62: =IF(EB_2x1_slipON="No","n/a",IF(EB_2x1_slipType=0,$DE$13*EXP(-$DL$13*NB_2x1_Leg_ExitFlow),IF(EB_2x1_slipType=1,$DE$15*EXP(-$DL$15*NB_2x1_Leg_ExitFlow),"large"))) -> n/a | CI62: veh/h | CJ62: =IF(EB_2x1_slipON="No","n/a",IF(EB_2x1_slipType=2,"large",ROUND(FHV_EB*EB_fped_SL*CH62,1))) -> n/a | CK62: conflicting with | CM62: pc/h | CN62: =IF(EB_2x1_slipON="No","n/a",$CJ$16+$DK$34+CO69) -> n/a | CO62: V/C Ratio | CP62: =IF(EB_2x1_slipON="No","n/a",IF(AND(EB_2x1_slipON="Yes",EB_2x1_slipType=2),0,CE62/CJ62)) -> n/a | CU62: Conflicting flow
AY63: =ROUND(3600/DA57+900*0.25*(DG50-1+SQRT((DG50-1)^2+((3600/DA57)*DG50)/(450*0.25)))+(5*(MIN(DG50,1))),1) -> 10.6 | BC63: d, s/veh
I64: =ROUNDUP(900*0.25*(CH58-1+SQRT((CH58-1)^2+((3600/CC55)*CH58)/(150*0.25)))*(CC55/3600),0) -> 2 | M64: Q95, veh | BW64: Type1b (yielding)
AY65: =IF(AY61<=1,VLOOKUP(AY63,LOS,2,TRUE),"F") -> B | BC65: LOS | DE65: =DD57-DB67 -> 0 | DI65: =DG57-DL67 -> 510
E66: Right-turn Bypass | I66: =IF(EB_2x1_slipON="NO","n/a",IF(AND(EB_2x1_slipON="Yes",EB_2x1_slipType=2),0,CP62)) -> n/a | M66: V/C
AY67: =ROUNDUP(900*0.25*(DG50-1+SQRT((DG50-1)^2+((3600/DA57)*DG50)/(150*0.25)))*(DA57/3600),0) -> 4 | BC67: Q95, veh | DB67: =CO69+CR69 -> 530 | DL67: =CX69 -> 0
I68: =IF(EB_2x1_slipON="NO","n/a",IF(AND(EB_2x1_slipON="Yes",EB_2x1_slipType=2),0,ROUND(3600/CJ62+900*0.25*(CP62-1+SQRT((CP62-1)^2+((3600/CJ62)*CP62)/(450*0.25)))+(5*(MIN(CP62,1))),1))) -> n/a | M68: d, s/veh
AU69: Right-turn Bypass | AY69: =IF(NB_2x1_slipON="NO","n/a",IF(AND(NB_2x1_slipON="Yes",NB_2x1_slipType=2),0,DK43)) -> 0.01067691651 | BC69: V/C | CO69: =NBU_Master -> 0 | CR69: =NBL_Master -> 530 | CU69: =NBT_Master -> 510 | CX69: =IF(NB_2x1_slipON="No",NBR_Master,0) -> 0
I70: =IF(EB_2x1_slipON="Yes",VLOOKUP(I68,LOS,2,TRUE),"n/a") -> n/a | M70: LOS | CO70: pc/h | CR70: pc/h | CU70: pc/h | CX70: pc/h
AY71: =IF(NB_2x1_slipON="NO","n/a",IF(AND(NB_2x1_slipON="Yes",NB_2x1_slipType=2),0,ROUND(3600/DK49+900*0.25*(DK43-1+SQRT((DK43-1)^2+((3600/DK49)*DK43)/(450*0.25)))+(5*(MIN(DK43,1))),1))) -> 3.9 | BC71: d, s/veh | DB71: Roundabout Entry Lane Discipline | DL71: =VLOOKUP(NB_LaneDesig,NB_2x1_lanedesignate,2,FALSE) -> L,TR
I72: =IF(EB_2x1_slipON="NO","n/a",IF(AND(EB_2x1_slipON="yes",EB_2x1_slipType=2),0,ROUNDUP(900*0.25*(CP62-1+SQRT((CP62-1)^2+((3600/CJ62)*CP62)/(150*0.25)))*(CJ62/3600),0))) -> n/a | M72: Q95, veh
AY73: =IF(NB_2x1_slipON="Yes",VLOOKUP(AY71,LOS,2,TRUE),"n/a") -> A | BC73: LOS | DB73: Right turn to Total Flow Ratio | DL73: =CX69/(CX69+CU69+CR69+CO69) -> 0
E74: Approach delay, s/veh | M74: =IF(EB_2x1_slipON="Yes",(I68*CE62+I60*CD58)/(CE62+CD58),(I60*CD58)/CD58) -> 8
AY75: =IF(NB_2x1_slipON="NO","n/a",IF(AND(NB_2x1_slipON="yes",NB_2x1_slipType=2),0,ROUNDUP(900*0.25*(DK43-1+SQRT((DK43-1)^2+((3600/DK49)*DK43)/(150*0.25)))*(DK49/3600),0))) -> 1 | BC75: Q95, veh
AU77: Approach delay, s/veh | BC77: =IF(NB_2x1_slipON="Yes",(AY71*DK54+AY55*DD55+AY63*DG55)/(DK54+DD55+DG55),(AY55*DD55+AY63*DG55)/(DD55+DG55)) -> 10.73809524

Sheet 2x2 Rndabt
B1: 2 NS x 2 EW Lane Roundabout | BL1: 2 NS x 2 EW Lane Roundabout
B3: Results Sheet | BL3: Design Sheet
EA4: SB_LeftlaneVolProp | EJ4: NB_leftlaneVolProp | ET4: EB_LeftlaneVolProp | FD4: WB_leftlaneVolProp
CY5: Equation | DF5: A x exp(-B x Q) | EA5: L,TR | EC5: =SUM(CK13:CP13) -> 350 | EJ5: L,TR | EL5: =SUM($CP$74:$CU$74) -> 530 | ET5: L,TR | EV5: =$BR$48+$BR$51 -> 50 | FD5: L,TR | FF5: =$DL$40+$DL$37 -> 50
C6: Project Name: | K6: =P_Name -> 0 | EA6: LT,R | EC6: =SUM(CH13:CP13) -> 650 | EJ6: LT,R | EL6: =SUM($CP$74:$CX$74) -> 1040 | ET6: LT,R | EV6: =$BR$48+$BR$51+$BR$54 -> 80 | FD6: LT,R | FF6: =$DL$40+$DL$37+$DL$34 -> 70
CY7: LT Lane | DD7: A | DF7: 1350 | DK7: B | DM7: 0.00092 | EA7: LT,TR | EC7: =0.47*SUM(CE13:CP13) -> 399.5 | EJ7: LT,TR | EL7: =0.47*SUM(CP74:DA74) -> 493.5 | ET7: LT,TR | EV7: =0.47*SUM($BR$48:$BR$59) -> 108.1 | FD7: LT,TR | FF7: =0.47*SUM(DL31:DL42) -> 220.9
C8: Project Number: | K8: =P_Number -> Enter the Project Number here (Input worksheet) | BP8: Right turn to Total Flow Ratio | BZ8: =CE13/(CE13+CH13+CK13+CN13) -> 0.2352941176 | EA8: L,LTR | EC8: =0.53*SUM(CE13:CP13) -> 450.5 | EJ8: L,LTR | EL8: =0.53*SUM(CP74:DA74) -> 556.5 | ET8: L,LTR | EV8: =0.53*SUM($BR$48:$BR$59) -> 121.9 | FD8: L,LTR | FF8: =0.53*SUM(DL31:DL42) -> 249.1
CY9: RT Lane | DD9: A | DF9: 1420 | DK9: B | DM9: 0.00085 | EA9: LTR,R | EC9: =0.47*SUM(CE13:CP13) -> 399.5 | EJ9: LTR,R | EL9: =0.47*SUM(CP74:DA74) -> 493.5 | ET9: LTR,R | EV9: =0.47*SUM($BR$48:$BR$59) -> 108.1 | FD9: LTR,R | FF9: =0.47*SUM(DL31:DL42) -> 220.9
C10: Location | K10: =Location -> Enter the Project Location here (Input worksheet) | AK10: Overal Roundabout Delay, s/veh | BC10: =(L43*(BT26+BW26+SB_2x2_ApprSlipVol)+BB43*(CY27+CY30+WB_2x2_ApprSlipVol)+BB78*(DF61+DI61+NB_2x2_ApprSlipVol)+L78*(CE59+CE62+EB_2x2_ApprSlipVol))/(BW26+BT26+SB_2x2_ApprSlipVol+CY27+CY30+WB_2x2_ApprSlipVol+DF61+DI61+NB_2x2_ApprSlipVol+CE59+CE62+EB_2x2_ApprSlipVol) -> 12.94913462 | BP10: Roundabout Entry Lane Discipline | BZ10: =VLOOKUP(SB_LaneDesig,SB_2x2_lanedesignate,2,FALSE) -> LT,TR
CY11: Bypass Type1a | DD11: A | DF11: 1380 | DK11: B | DM11: 0.00102 | EA11: Rigt-turn Slip Type | EJ11: EB | EK11: WB | EL11: SB | EM11: NB
C12: Date | K12: =Date -> Enter the date here (Input worksheet) | AK12: Overal Roundabout LOS | BC12: =VLOOKUP(BC10,LOS,2,TRUE) -> B | CE12: pc/h | CH12: pc/h | CK12: pc/h | CN12: pc/h | EA12: Type1a (yielding) | EB12: 0 | EJ12: =VLOOKUP(BZ68,RT_slip_type,2,FALSE) -> 2 | EK12: =VLOOKUP(CY23,RT_slip_type,2,FALSE) -> 1 | EL12: =VLOOKUP(BM24,RT_slip_type,2,FALSE) -> 2 | EM12: =VLOOKUP(DM63,RT_slip_type,2,FALSE) -> 0
BP13: =CE13 -> 200 | BZ13: =CK13+CN13 -> 350 | CE13: =IF(SB_2X2_slipON="No",SBR_Master,0) -> 200 | CH13: =SBT_Master -> 300 | CK13: =SBL_Master -> 350 | CN13: =SBU_Master -> 0 | CY13: Bypass Type1b | DD13: A | DF13: 1420 | DK13: B | DM13: 0.00085 | EA13: Type1b (yielding) | EB13: 1
EA14: Type2 (nonyielding) | EB14: 2
D16: Predicted approach capacity | AT16: Predicted approach capacity | BS16: =BT24-BP13 -> 250.5 | BW16: =BW24-BZ13 -> 49.5 | DN16: =VLOOKUP(WB_LaneDesig,WB_2x2_lanedesignate,2,FALSE) -> LT,R | DP16: =DL31/(DL31+DL34+DL37+DL40) -> 0.8510638298
DJ17: =IF(DL31>DA27,DA27,DL31) -> 400
D19: Lane 1 | H19: =BW30 -> 0.5139585746 | L19: V/C | AT19: Lane 1 | AX19: =CT30 -> 0.1413570275 | BB19: V/C | BM19: Right-turn Bypass Lane | CA19: Conflicting flow
CA20: =DH20 -> 0 | DH20: =DA27-DJ17 -> 0 | DN20: Roundabout Entry Lane Discipline | DP20: Right turn to Total Flow Ratio
H21: =ROUND(3600/CG25+900*0.25*(BW30-1+SQRT((BW30-1)^2+((3600/CG25)*BW30)/(450*0.25)))+(5*(MIN(BW30,1))),1) -> 12 | L21: d, s/veh | AX21: =ROUND(3600/CW36+900*0.25*(CT30-1+SQRT((CT30-1)^2+((3600/CW36)*CT30)/(450*0.25)))+(5*(MIN(CT30,1))),1) -> 9.2 | BB21: d, s/veh | CJ21: =IF(WB_2X2_slipON="No","n/a",IF(AND(WB_2X2_slipON="Yes",WB_2X2_slipType=2),0,CU21/CP21)) -> n/a | CK21: V/C RATIO | CL21: =IF(WB_2X2_slipON="No","n/a",$BR$51+$CN$13+$CV$74) -> n/a | CM21: pc/h | CN21: conflicting with | CP21: =IF(WB_2X2_slipON="No","n/a",IF(WB_2X2_slipType=2,"large",ROUND(FHV_WB*WB_fped_SL*CR21,1))) -> n/a | CQ21: veh/h | CR21: =IF(WB_2X2_slipON="No","n/a",IF(WB_2X2_slipType=0,$DF$11*EXP(-$DM$11*SB_2x2_Leg_ExitFlow),IF(WB_2X2_slipType=1,$DF$13*EXP(-$DM$13*SB_2x2_Leg_ExitFlow),"large"))) -> n/a | CS21: pc/h | CT21: capacity | CU21: =IF(WB_2X2_slipON="No","n/a",ROUND(FHV_WB*WB_fped_SL*CW21,1)) -> n/a | CV21: veh/h | CW21: =IF(WB_2X2_slipON="Yes",WBR_Master,"n/a") -> n/a | CX21: pc/h | CY21: No | DE21: Right-turn Bypass Lane | EA21: Right-turn Slip
CA22: =DH24+DJ27+DC72+BR48 -> 600 | EH22: EB | EJ22: WB | EM22: SB | EO22: NB
H23: =IF(H19<=1,VLOOKUP(H21,LOS,2,TRUE),"F") -> B | L23: LOS | AX23: =IF(AX19<=1,VLOOKUP(AX21,LOS,2,TRUE),"F") -> A | BB23: LOS | BM23: No | BT23: pc/h | BW23: pc/h | CY23: Type1b (yielding) | EA23: No | EB23: 0 | EH23: =BZ66 -> No | EJ23: =CY21 -> No | EM23: =BM23 -> No | EO23: =DM61 -> No
BM24: Type2 (nonyielding) | BT24: =SUM(CE13:CP13)-BW24 -> 450.5 | BW24: =VLOOKUP(BZ10,SB_2x2_Leftlane_VolProp,3,FALSE) -> 399.5 | CA24: Lane Cap. | DH24: =DA30-DJ27 -> 20 | EA24: Yes | EB24: 1
H25: =ROUNDUP(900*0.25*(BW30-1+SQRT((BW30-1)^2+((3600/CG25)*BW30)/(150*0.25)))*(CG25/3600),0) -> 3 | L25: Q95, veh | AX25: =ROUNDUP(900*0.25*(CT30-1+SQRT((CT30-1)^2+((3600/CW36)*CT30)/(150*0.25)))*(CW36/3600),0) -> 1 | BB25: Q95, veh | BT25: veh/h | BW25: veh/h | CA25: 1 | CE25: =$DF$7*EXP(-$DM$7*(CA22+CA20)) -> 777.3260363 | CG25: =ROUND(FHV_SB*SB_fped_ML*CE25,1) -> 777.3
BT26: =ROUND(FHV_SB*BT24,1) -> 450.5 | BW26: =ROUND(FHV_SB*BW24,1) -> 399.5
D27: Lane 2 | H27: =BT30 -> 0.5283218013 | L27: V/C | AT27: Lane 2 | AX27: =CT27 -> 0.7114905727 | BB27: V/C | BM27: pc/h | BT27: V/C RATIO | BW27: V/C RATIO | CA27: 2 | CE27: =$DF$9*EXP(-$DM$9*(CA20+CA22)) -> 852.7037219 | CG27: =ROUND(FHV_SB*SB_fped_ML*CE27,1) -> 852.7 | CR27: 2 | CT27: =CY27/CY36 -> 0.7114905727 | CV27: V/C RATIO | CY27: =ROUND(FHV_WB*DA27,1) -> 400 | CZ27: veh/h | DA27: =SUM(DL31:DL42)-DA30 -> 400 | DB27: pc/h | DJ27: =IF(SUM(DL37:DL42)>DA30,DA30,SUM(DL37:DL42)) -> 50
BM28: =IF(SB_2X2_slipON="Yes",SBR_Master,"n/a") -> n/a | EA28: Slip Approach vol
H29: =ROUND(3600/CG27+900*0.25*(BT30-1+SQRT((BT30-1)^2+((3600/CG27)*BT30)/(450*0.25)))+(5*(MIN(BT30,1))),1) -> 11.5 | L29: d, s/veh | AX29: =ROUND(3600/CY36+900*0.25*(CT27-1+SQRT((CT27-1)^2+((3600/CY36)*CT27)/(450*0.25)))+(5*(MIN(CT27,1))),1) -> 24.2 | BB29: d, s/veh | BM29: veh/h | EA29: =IF(EB_2X2_slipON="No",0,CI66) -> 0
BM30: =IF(SB_2X2_slipON="No","n/a",ROUND(FHV_SB*SB_fped_SL*BM28,1)) -> n/a | BT30: =BT26/CG27 -> 0.5283218013 | BW30: =BW26/CG25 -> 0.5139585746 | CO30: . | CR30: 1 | CT30: =CY30/CW36 -> 0.1413570275 | CV30: V/C RATIO | CY30: =ROUND(FHV_WB*DA30,1) -> 70 | CZ30: veh/h | DA30: =VLOOKUP(DN16,WB_2x2_Leftlane_VolProp,3,FALSE) -> 70 | DB30: pc/h | EA30: =IF(WB_2X2_slipON="No",0,CU21) -> 0
H31: =IF(H27<=1,VLOOKUP(H29,LOS,2,TRUE),"F") -> B | L31: LOS | AX31: =IF(AX27<=1,VLOOKUP(AX29,LOS,2,TRUE),"F") -> C | BB31: LOS | BM31: capacity | DL31: =IF(WB_2X2_slipON="No",WBR_Master,0) -> 400 | DM31: pc/h | EA31: =IF(NB_2X2_slipON="No",0,DM57) -> 0
BM32: pc/h | BT32: 2 | BW32: 1 | EA32: =IF(SB_2X2_slipON="No",0,BM30) -> 0
H33: =ROUNDUP(900*0.25*(BT30-1+SQRT((BT30-1)^2+((3600/CG27)*BT30)/(150*0.25)))*(CG27/3600),0) -> 4 | L33: Q95, veh | AX33: =ROUNDUP(900*0.25*(CT27-1+SQRT((CT27-1)^2+((3600/CY36)*CT27)/(150*0.25)))*(CY36/3600),0) -> 6 | BB33: Q95, veh | BM33: =IF(SB_2X2_slipON="No","n/a",IF(SB_2X2_slipType=0,$DF$11*EXP(-$DM$11*EB_2x2_Leg_ExitFlow),IF(SB_slipType=1,$DF$13*EXP(-$DM$13*EB_2x2_Leg_ExitFlow),"large"))) -> n/a
BM34: veh/h | CW34: =$DF$7*EXP(-$DM$7*(DB38+DD38)) -> 495.2486063 | CY34: =$DF$9*EXP(-$DM$9*(DB38+DD38)) -> 562.2306363 | DA34: pc/h | DF34: Conflicting flow | DL34: =WBT_Master -> 20 | DM34: pc/h | EA34: EB | EC34: NB | EE34: SB | EG34: WB
D35: Right-turn Bypass | H35: =IF(SB_2X2_slipON="NO","n/a",IF(AND(SB_2X2_slipON="Yes",SB_2X2_slipType=2),0,BM41)) -> n/a | L35: V/C | AT35: Right-turn Bypass | AX35: =IF(WB_2X2_slipON="NO","n/a",IF(AND(WB_2X2_slipON="Yes",WB_2X2_slipType=2),0,CJ21)) -> n/a | BB35: V/C | BM35: =IF(SB_2X2_slipON="no","n/a",IF(SB_2X2_slipType=2,"large",ROUND(FHV_SB*SB_fped_SL*BM33,1))) -> n/a
BM36: conflicting with | CW36: =ROUND(FHV_WB*WB_fped_ML*CW34,1) -> 495.2 | CY36: =ROUND(FHV_WB*WB_fped_ML*CY34,1) -> 562.2 | DA36: veh/h | EA36: LT,TR | EB36: =IF($BR$48+$BR$51>$BR$54+$BR$57,"L,TR",IF($BR$57>$BR$48+$BR$51+$BR$54,"LT,R","LT,TR")) -> LT,R | EC36: LT,TR | ED36: =IF($CP$74+$CS$74>$CV$74+$CY$74,"L,TR",IF($CY$74>$CP$74+$CS$74+$CV$74,"LT,R","LT,TR")) -> L,TR | EE36: LT,TR | EF36: =IF($CN$13+$CK$13>$CH$13+$CE$13,"L,TR",IF($CE$13>$CN$13+$CK$13+$CH$13,"LT,R","LT,TR")) -> LT,TR | EG36: LT,TR | EH36: =IF($DL$40+$DL$37>$DL$34+$DL$31,"L,TR",IF($DL$31>$DL$40+$DL$37+$DL$34,"LT,R","LT,TR")) -> LT,R
H37: =IF(SB_2X2_slipON="NO","n/a",IF(AND(SB_2X2_slipON="Yes",SB_2X2_slipType=2),0,ROUND(3600/BM35+900*0.25*(BM41-1+SQRT((BM41-1)^2+((3600/BM35)*BM41)/(450*0.25)))+(5*(MIN(BM41,1))),1))) -> n/a | L37: d, s/veh | AX37: =IF(WB_2X2_slipON="NO","n/a",IF(AND(WB_2X2_slipON="Yes",WB_2X2_slipType=2),0,ROUND(3600/CP21+900*0.25*(CJ21-1+SQRT((CJ21-1)^2+((3600/CP21)*CJ21)/(450*0.25)))+(5*(MIN(CJ21,1))),1))) -> n/a | BB37: d, s/veh | DL37: =WBL_Master -> 50 | DM37: pc/h | EA37: L,LTR | EB37: =IF(BR54+BR57>BR48+BR51,"L,TR","L,LTR") -> L,TR | EC37: L,LTR | ED37: =IF(CV74+CY74>CP74+CS74,"L,TR","L,LTR") -> L,LTR | EE37: L,LTR | EF37: =IF(CE13+CH13>CK13+CN13,"L,TR","L,LTR") -> L,TR | EG37: L,LTR | EH37: =IF(DL31+DL34>DL40+DL37,"L,TR","L,LTR") -> L,TR
BM38: pc/h | CW38: 1 | CY38: 2 | DA38: Lane Cap. | DB38: =DF70+DC72+BS62+CN13 -> 580 | DD38: =DJ70 -> 510 | EA38: LTR,R | EB38: =IF(BR48+BR51+BR54>BR57,"LT,R","LTR,R") -> LTR,R | EC38: LTR,R | ED38: =IF(CP74+CS74+CV74>CY74,"LT,R","LTR,R") -> LT,R | EE38: LTR,R | EF38: =IF(CN13+CK13+CH13>CE13,"LT,R","LTR,R") -> LT,R | EG38: LTR,R | EH38: =IF(DL40+DL37+DL34>DL31,"LT,R","LTR,R") -> LTR,R
H39: =IF(SB_2X2_slipON="Yes",VLOOKUP(H37,LOS,2,TRUE),"n/a") -> n/a | L39: LOS | AX39: =IF(WB_2X2_slipON="Yes",VLOOKUP(AX37,LOS,2,TRUE),"n/a") -> n/a | BB39: LOS | BM39: =IF(SB_2X2_slipON="No","n/a",$DL$34+$BR$48+CS74) -> n/a | EA39: Not Sure | EB39: =IF($BR$48+$BR$51>$BR$54+$BR$57,"L,TR",IF($BR$57>$BR$48+$BR$51+$BR$54,"LT,R","LT,TR")) -> LT,R | EC39: Not Sure | ED39: =IF($CP$74+$CS$74>$CV$74+$CY$74,"L,TR",IF($CY$74>$CP$74+$CS$74+$CV$74,"LT,R","LT,TR")) -> L,TR | EE39: Not Sure | EF39: =IF($CN$13+$CK$13>$CH$13+$CE$13,"L,TR",IF($CE$13>$CN$13+$CK$13+$CH$13,"LT,R","LT,TR")) -> LT,TR | EG39: Not Sure | EH39: =IF($DL$40+$DL$37>$DL$34+$DL$31,"L,TR",IF($DL$31>$DL$40+$DL$37+$DL$34,"LT,R","LT,TR")) -> LT,R
BM40: V/C RATIO | DL40: =WBU_Master -> 0 | DM40: pc/h
H41: =IF(SB_2X2_slipON="NO","n/a",IF(AND(SB_2X2_slipON="yes",SB_2X2_slipType=2),0,ROUNDUP(900*0.25*(BM41-1+SQRT((BM41-1)^2+((3600/BM35)*BM41)/(150*0.25)))*(BM35/3600),0))) -> n/a | L41: Q95, veh | AX41: =IF(WB_2X2_slipON="NO","n/a",IF(AND(WB_2X2_slipON="yes",WB_2X2_slipType=2),0,ROUNDUP(900*0.25*(CJ21-1+SQRT((CJ21-1)^2+((3600/CP21)*CJ21)/(150*0.25)))*(CP21/3600),0))) -> n/a | BB41: Q95, veh | BM41: =IF(SB_2X2_slipON="No","n/a",IF(AND(SB_2X2_slipON="Yes",SB_2X2_slipType=2),0,BM30/BM35)) -> n/a
EA42: *NOTE
D43: Approach delay, s/veh | L43: =IF(SB_2X2_slipON="Yes",(H37*BM30+H21*BW26+H29*BT26)/(BM30+BW26+BT26),(H21*BW26+H29*BT26)/(BT26+BW26)) -> 11.735 | AT43: Approach delay, s/veh | BB43: =IF(WB_2X2_slipON="Yes",(AX37*CU21+AX21*CY30+AX29*CY27)/(CU21+CY30+CY27),(AX21*CY30+AX29*CY27)/(CY30+CY27)) -> 21.96595745 | EA43: "Note Sure"==LT,TR
DM46: =IF(NB_2X2_slipON="No","n/a",IF(AND(NB_2X2_slipON="Yes",NB_2X2_slipType=2),0,DM57/DM52)) -> n/a
DM47: V/C RATIO
BQ48: pc/h | BR48: =EBU_Master -> 0 | DM48: =IF(NB_2X2_slipON="No","n/a",$BR$54+$CK$13+$DL$40) -> n/a
BX49: Conflicting flow | BY49: =BS16 -> 250.5 | CA49: =BW16+BZ13+DJ27+CP74 -> 449.5 | CC49: Lane Cap. | CD49: 2 | CF49: 1 | DM49: pc/h
DM50: conflicting with
D51: Predicted approach capacity | AT51: Predicted approach capacity | BQ51: pc/h | BR51: =EBL_Master -> 50
DM52: =IF(NB_2X2_slipON="No","n/a",IF(NB_2X2_slipType=2,"large",ROUND(FHV_NB*NB_fped_SL*DM54,1))) -> n/a
DM53: veh/h
D54: Lane 1 | H54: =CI59 -> 0.1128349788 | L54: V/C | AT54: Lane 1 | AX54: =DF56 -> 0.5831224557 | BB54: V/C | BQ54: pc/h | BR54: =EBT_Master -> 30 | CC54: pc/h | CD54: =$DF$9*EXP(-$DM$9*(CA49+BY49)) -> 783.2188435 | CF54: =$DF$7*EXP(-$DM$7*(BY49+CA49)) -> 709.0030805 | DF54: 1 | DI54: 2 | DM54: =IF(NB_2X2_slipON="No","n/a",IF(NB_2X2_slipType=0,$DF$11*EXP(-$DM$11*WB_2x2_Leg_ExitFlow),IF(NB_2X2_slipType=1,$DF$13*EXP(-$DM$13*WB_2x2_Leg_ExitFlow),"large"))) -> n/a
DM55: pc/h
H56: =ROUND(3600/CF56+900*0.25*(CI59-1+SQRT((CI59-1)^2+((3600/CF56)*CI59)/(450*0.25)))+(5*(MIN(CI59,1))),1) -> 6.3 | L56: d, s/veh | AX56: =ROUND(3600/DC59+900*0.25*(DF56-1+SQRT((DF56-1)^2+((3600/DC59)*DF56)/(450*0.25)))+(5*(MIN(DF56,1))),1) -> 12.3 | BB56: d, s/veh | CC56: veh/h | CD56: =ROUND(FHV_EB*EB_fped_ML*CD54,1) -> 783.2 | CF56: =ROUND(FHV_EB*EB_fped_ML*CF54,1) -> 709 | DF56: =DF61/DC59 -> 0.5831224557 | DI56: =DI61/DC61 -> 0.5277580432 | DM56: capacity
BQ57: pc/h | BR57: =IF(EB_2X2_slipON="No",EBR_Master,0) -> 150 | DM57: =IF(NB_2X2_slipON="No","n/a",ROUND(FHV_NB*NB_fped_SL*DM59,1)) -> n/a
H58: =IF(H54<=1,VLOOKUP(H56,LOS,2,TRUE),"F") -> A | L58: LOS | AX58: =IF(AX54<=1,VLOOKUP(AX56,LOS,2,TRUE),"F") -> B | BB58: LOS | DF58: V/C RATIO | DI58: V/C RATIO | DM58: veh/h
CB59: pc/h | CC59: =VLOOKUP(BO72,EB_1x2_LeftLane_VolProp,3,FALSE) -> 80 | CD59: veh/h | CE59: =ROUND(FHV_EB*CC59,1) -> 80 | CF59: V/C RATIO | CI59: =CE59/CF56 -> 0.1128349788 | CK59: 1 | CW59: 1 | DA59: =$DF$7*EXP(-$DM$7*(CW66+CW64)) -> 908.9225358 | DC59: =ROUND(FHV_NB*NB_fped_ML*DA59,1) -> 908.9 | DM59: =IF(NB_2X2_slipON="Yes",NBR_Master,"n/a") -> n/a
H60: =ROUNDUP(900*0.25*(CI59-1+SQRT((CI59-1)^2+((3600/CF56)*CI59)/(150*0.25)))*(CF56/3600),0) -> 1 | L60: Q95, veh | AX60: =ROUNDUP(900*0.25*(DF56-1+SQRT((DF56-1)^2+((3600/DC59)*DF56)/(150*0.25)))*(DC59/3600),0) -> 4 | BB60: Q95, veh | DM60: pc/h
CW61: 2 | DA61: =$DF$9*EXP(-$DM$9*(CW64+CW66)) -> 985.2664878 | DC61: =ROUND(FHV_NB*NB_fped_ML*DA61,1) -> 985.3 | DF61: =ROUND(FHV_NB*DF63,1) -> 530 | DI61: =ROUND(FHV_NB*DI63,1) -> 520 | DM61: No
D62: Lane 2 | H62: =CI62 -> 0.1915219612 | L62: V/C | AT62: Lane 2 | AX62: =DI56 -> 0.5277580432 | BB62: V/C | BM62: Right turn to Total Flow Ratio | BO62: Roundabout Entry Lane Discipline | BS62: =BR51+BR48 -> 50 | CB62: pc/h | CC62: =SUM(BR48:BR59)-CC59 -> 150 | CD62: veh/h | CE62: =ROUND(FHV_EB*CC62,1) -> 150 | CF62: V/C RATIO | CI62: =CE62/CD56 -> 0.1915219612 | CK62: 2 | DF62: veh/h | DI62: veh/h
CW63: Lane Cap. | DA63: pc/h | DC63: veh/h | DF63: =VLOOKUP(DM76,NB_2x2_Leftlane_VolProp,3,FALSE) -> 530 | DI63: =SUM(CP74:DA74)-DF63 -> 520 | DM63: Type1a (yielding)
H64: =ROUND(3600/CD56+900*0.25*(CI62-1+SQRT((CI62-1)^2+((3600/CD56)*CI62)/(450*0.25)))+(5*(MIN(CI62,1))),1) -> 6.6 | L64: d, s/veh | AX64: =ROUND(3600/DC61+900*0.25*(DI56-1+SQRT((DI56-1)^2+((3600/DC61)*DI56)/(450*0.25)))+(5*(MIN(DI56,1))),1) -> 10.3 | BB64: d, s/veh | CW64: =BS62+BU65+BZ13+DL40 -> 430 | DF64: pc/h | DI64: pc/h
BU65: =CC59-BS62 -> 30 | DM65: Right-turn Bypass Lane
H66: =IF(H62<=1,VLOOKUP(H64,LOS,2,TRUE),"F") -> A | L66: LOS | AX66: =IF(AX62<1,VLOOKUP(AX64,LOS,2,TRUE),"F") -> B | BB66: LOS | BX66: Right-turn Bypass Lane | BZ66: No | CF66: pc/h | CG66: =IF(EB_2X2_slipON="Yes",EBR_Master,"n/a") -> n/a | CH66: veh/h | CI66: =IF(EB_2X2_slipON="No","n/a",ROUND(CG66*FHV_EB*EB_fped_SL,1)) -> n/a | CJ66: capacity | CK66: pc/h | CL66: =IF(EB_2X2_slipON="No","n/a",IF(EB_2X2_slipType=0,$DF$11*EXP(-$DM$11*NB_2x2_Leg_ExitFlow),IF(EB_2X2_slipType=1,$DF$13*EXP(-$DM$13*NB_2x2_Leg_ExitFlow),"large"))) -> n/a | CM66: veh/h | CN66: =IF(EB_2X2_slipON="No","n/a",IF(EB_2X2_slipType=2,"large",ROUND(FHV_EB*EB_fped_SL*CL66,1))) -> n/a | CO66: conflicting with | CQ66: pc/h | CR66: =IF(EB_2X2_slipON="No","n/a",$CH$13+$DL$37+$CP$74) -> n/a | CS66: V/C Ratio | CT66: =IF(EB_2X2_slipON="No","n/a",IF(AND(EB_2X2_slipON="Yes",EB_2X2_slipType=2),0,CI66/CN66)) -> n/a | CW66: =BU69 -> 0
H68: =ROUNDUP(900*0.25*(CI62-1+SQRT((CI62-1)^2+((3600/CD56)*CI62)/(150*0.25)))*(CD56/3600),0) -> 1 | L68: Q95, veh | AX68: =ROUNDUP(900*0.25*(DI56-1+SQRT((DI56-1)^2+((3600/DC61)*DI56)/(150*0.25)))*(DC61/3600),0) -> 4 | BB68: Q95, veh | BZ68: Type2 (nonyielding) | CW68: Conflicting flow
BU69: =CC62-BS72 -> 0
D70: Right-turn Bypass | H70: =IF(EB_2X2_slipON="NO","n/a",IF(AND(EB_2X2_slipON="Yes",EB_2X2_slipType=2),0,CT66)) -> n/a | L70: V/C | AT70: Right-turn Bypass | AX70: =IF(NB_2X2_slipON="NO","n/a",IF(AND(NB_2X2_slipON="Yes",NB_2X2_slipType=2),0,DM46)) -> n/a | BB70: V/C | DF70: =DF63-DC72 -> 0 | DJ70: =DI63-DM72 -> 510
H72: =IF(EB_2X2_slipON="NO","n/a",IF(AND(EB_2X2_slipON="Yes",EB_2X2_slipType=2),0,ROUND(3600/CN66+900*0.25*(CT66-1+SQRT((CT66-1)^2+((3600/CN66)*CT66)/(450*0.25)))+(5*(MIN(CT66,1))),1))) -> n/a | L72: d, s/veh | AX72: =IF(NB_2X2_slipON="NO","n/a",IF(AND(NB_2X2_slipON="Yes",NB_2X2_slipType=2),0,ROUND(3600/DM52+900*0.25*(DM46-1+SQRT((DM46-1)^2+((3600/DM52)*DM46)/(450*0.25)))+(5*(MIN(DM46,1))),1))) -> n/a | BB72: d, s/veh | BM72: =BR57/(BR57+BR54+BR51+BR48) -> 0.652173913 | BO72: =VLOOKUP(EB_LaneDesig,EB_2x2_lanedesignate,2,FALSE) -> LT,R | BS72: =BR57 -> 150 | DC72: =CP74+CS74 -> 530 | DM72: =CY74 -> 10
H74: =IF(EB_2X2_slipON="Yes",VLOOKUP(H72,LOS,2,TRUE),"n/a") -> n/a | L74: LOS | AX74: =IF(NB_2X2_slipON="Yes",VLOOKUP(AX72,LOS,2,TRUE),"n/a") -> n/a | BB74: LOS | CP74: =NBU_Master -> 0 | CS74: =NBL_Master -> 530 | CV74: =NBT_Master -> 510 | CY74: =IF(NB_2X2_slipON="No",NBR_Master,0) -> 10
CP75: pc/h | CS75: pc/h | CV75: pc/h | CY75: pc/h
H76: =IF(EB_2X2_slipON="NO","n/a",IF(AND(EB_2X2_slipON="yes",EB_2X2_slipType=2),0,ROUNDUP(900*0.25*(CT66-1+SQRT((CT66-1)^2+((3600/CN66)*CT66)/(150*0.25)))*(CN66/3600),0))) -> n/a | L76: Q95, veh | AX76: =IF(NB_2X2_slipON="NO","n/a",IF(AND(NB_2X2_slipON="yes",NB_2X2_slipType=2),0,ROUNDUP(900*0.25*(DM46-1+SQRT((DM46-1)^2+((3600/DM57)*DM46)/(150*0.25)))*(DM57/3600),0))) -> n/a | BB76: Q95, veh | DC76: Roundabout Entry Lane Discipline | DM76: =VLOOKUP(NB_LaneDesig,NB_2x2_lanedesignate,2,FALSE) -> L,TR
D78: Approach delay, s/veh | L78: =IF(EB_2X2_slipON="Yes",(H72*CI66+H56*CE59+H64*CE62)/(CI66+CE59+CE62),(H56*CE59+H64*CE62)/(CE59+CE62)) -> 6.495652174 | AT78: Approach delay, s/veh | BB78: =IF(NB_2X2_slipON="Yes",(AX72*DM57+AX56*DF61+AX64*DI61)/(DM57+DF61+DI61),(AX56*DF61+AX64*DI61)/(DF61+DI61)) -> 11.30952381 | DC78: Right turn to Total Flow Ratio | DM78: =CY74/(CY74+CV74+CS74+CP74) -> 0.009523809524

Sheet Output Worksheet
B1: Capacity Analysis for Planning of Roundabouts
B3: Output Worksheet
E7: Project Name: | M7: =P_Name -> 0
E9: Project Number: | M9: =P_Number -> Enter the Project Number here (Input worksheet)
E11: Location | M11: =Location -> Enter the Project Location here (Input worksheet)
E13: Date | M13: =Date -> Enter the date here (Input worksheet)
E19: Results for Roundabouts
E21: # | H21: TYPE OF ROUNDABOUT | O21: Zone 1 (North) | AA21: Zone 3 (West) | AM21: Zone 2 (South) | AY21: Zone 4 (Eest) | BK21: Consolidated LOS | BR21: Ranking | CO21: Rank
O23: Lane 1 | S23: Lane 2 | W23: Bypass Lane | AA23: Lane 1 | AE23: Lane 2 | AI23: Bypass Lane | AM23: Lane 1 | AQ23: Lane 2 | AU23: Bypass Lane | AY23: Lane 1 | BC23: Lane 2 | BG23: Bypass Lane | CO23: =IF(BK25="LOS A",1,IF(BK25="LOS B",2,IF(BK25="LOS C",3,IF(BK25="LOS D",4,IF(BK25="LOS E",5,6))))) -> 6
E25: 1 | H25: 1 X 1 | O25: ="LOS"&" "&SB_1x1_LOS_lane1 -> LOS D | W25: =IF(SB_slipON="Yes","LOS"&" "&SB_1x1_LOS_sliplane,"n/a") -> LOS A | AA25: ="LOS"&" "&EB_1x1_LOS_lane1 -> LOS B | AI25: =IF(EB_SlipON="Yes","LOS"&" "&EB_1x1_LOS_sliplane,"n/a") -> LOS A | AM25: ="LOS"&" "&NB_1x1_LOS_lane1 -> LOS F | AU25: =IF(NB_slipON="Yes","LOS"&" "&NB_1x1_LOS_sliplane,"n/a") -> LOS A | AY25: ="LOS"&" "&WB_1x1_LOS_lane1 -> LOS B | BG25: =IF(WB_slipON="Yes","LOS"&" "&WB_1x1_LOS_sliplane,"n/a") -> LOS A | BK25: ="LOS"&" "&Oval_1x1_LOS -> LOS F | BR25: =RANK(CO23,(CO23:CO30),1) -> 4 | CO25: =IF(BK27="LOS A",1,IF(BK27="LOS B",2,IF(BK27="LOS C",3,IF(BK27="LOS D",4,IF(BK27="LOS E",5,6))))) -> 5
E27: 1.2 | H27: 1 X 2 | O27: ="LOS"&" "&SB_1x2_LOS_lane1 -> LOS C | W27: =IF(SB_1x2_slipON="Yes","LOS"&" "&SB_1x2_LOS_sliplane,"n/a") -> LOS A | AA27: ="LOS"&" "&EB_1x2_LOS_lane1 -> LOS A | AE27: ="LOS"&" "&EB_1x2_LOS_lane2 -> LOS A | AI27: =IF(EB_1x2_slipON="Yes","LOS"&" "&EB_1x2_LOS_sliplane,"n/a") -> LOS A | AM27: ="LOS"&" "&NB_1x2_LOS_lane1 -> LOS F | AU27: =IF(NB_1x2_slipON="Yes","LOS"&" "&NB_1x2_LOS_sliplane,"n/a") -> n/a | AY27: ="LOS"&" "&WB_1x2_LOS_lane1 -> LOS A | BC27: ="LOS"&" "&WB_1x2_LOS_lane2 -> LOS A | BG27: =IF(WB_1x2_slipON="Yes","LOS"&" "&WB_1x2_LOS_sliplane,"n/a") -> LOS B | BK27: ="LOS"&" "&Oval_1x2_LOS -> LOS E | BR27: =RANK(CO25,(CO23:CO30),1) -> 3 | CO27: =IF(BK29="LOS A",1,IF(BK29="LOS B",2,IF(BK29="LOS C",3,IF(BK29="LOS D",4,IF(BK29="LOS E",5,6))))) -> 1
E29: 1.3 | H29: 2 X 1 | O29: ="LOS"&" "&SB_2x1_LOS_lane1 -> LOS A | S29: ="LOS"&" "&SB_2x1_LOS_lane2 -> LOS A | W29: =IF(SB_2x1_slipON="Yes","LOS"&" "&SB_2x1_LOS_sliplane,"n/a") -> LOS A | AA29: ="LOS"&" "&EB_2x1_LOS_lane1 -> LOS A | AI29: =IF(EB_2x1_slipON="Yes","LOS"&" "&EB_2x1_LOS_sliplane,"n/a") -> n/a | AM29: ="LOS"&" "&NB_2x1_LOS_lane1 -> LOS B | AQ29: ="LOS"&" "&NB_2x1_LOS_lane2 -> LOS B | AU29: =IF(NB_2X2_slipON="Yes","LOS"&" "&NB_2x1_LOS_sliplane,"n/a") -> n/a | AY29: ="LOS"&" "&WB_2x1_LOS_lane1 -> LOS A | BG29: =IF(WB_2x1_slipON="Yes","LOS"&" "&WB_2x1_LOS_sliplane,"n/a") -> LOS B | BK29: ="LOS"&" "&Oval_2x1_LOS -> LOS A | BR29: =RANK(CO27,(CO23:CO30),1) -> 1 | CO29: =IF(BK31="LOS A",1,IF(BK31="LOS B",2,IF(BK31="LOS C",3,IF(BK31="LOS D",4,IF(BK31="LOS E",5,6))))) -> 2
B30: =IF(O25>1,1,0) -> 1 | C30: =IF(AA25>1,1,0) -> 1
B31: =IF(AM25>1,1,0) -> 1 | C31: =IF(AY25>1,1,0) -> 1 | E31: 1.4 | H31: 2 X 2 | O31: ="LOS"&" "&SB_2x2_LOS_lane1 -> LOS B | S31: ="LOS"&" "&SB_2x2_LOS_lane2 -> LOS B | W31: =IF(SB_2X2_slipON="Yes","LOS"&" "&SB_2x2_LOS_sliplane,"n/a") -> n/a | AA31: ="LOS"&" "&EB_2x2_LOS_lane1 -> LOS A | AE31: ="LOS"&" "&EB_2x2_LOS_lane2 -> LOS A | AI31: =IF(EB_2X2_slipON="Yes","LOS"&" "&EB_2x2_LOS_sliplane,"n/a") -> n/a | AM31: ="LOS"&" "&NB_2x2_LOS_lane1 -> LOS B | AQ31: ="LOS"&" "&NB_2x2_LOS_lane2 -> LOS B | AU31: =IF(NB_2X2_slipON="Yes","LOS"&" "&NB_2x2_LOS_sliplane,"n/a") -> n/a | AY31: ="LOS"&" "&WB_2x2_LOS_lane1 -> LOS A | BC31: ="LOS"&" "&WB_2x2_LOS_lane2 -> LOS C | BG31: =IF(WB_2X2_slipON="Yes","LOS"&" "&WB_2x2_LOS_sliplane,"n/a") -> n/a | BK31: ="LOS"&" "&Oval_2x2_LOS -> LOS B | BR31: =RANK(CO29,CO23:CO30,1) -> 2
CA33: =MAX(O25:BJ26) -> 0
B34: =IF(AY29>1,1,0) -> 1 | C34: =IF(AA29>1,1,0) -> 1
B35: =IF(OR(O29>1, S29>1),1,0) -> 1 | C35: =IF(OR(AM29>1,AQ29>1),1,0) -> 1 | CA35: =MAX(O27:BJ28) -> 0
CA37: =MAX(O29:BJ30) -> 0
B38: =IF(OR(O31>1, S31>1),1,0) -> 1 | C38: =IF(OR(AY31>1,BC31>1),1,0) -> 1
B39: =IF(OR(AM31>1, AQ31>1),1,0) -> 1 | C39: =IF(OR(AA31>1, AE31>1),1,0) -> 1 | CA39: =MAX(O31:BJ32) -> 0
